{"text_format":"1","workbook":"xlsx","n_sheets":1,"sheets":["рус"],"not_rendered":{"charts":0,"images":0,"macros":1,"external_links":0,"defined_names":1,"comments":0,"pivot_tables":0},"unopened":[],"bounds":{"document_bytes":16777216,"sheet_cells":100000,"rows_first":2000,"rows_last":500,"rows_between":2000,"halvings":0,"cell_chars":16384,"cell_head_chars":4096},"cells_cut":0,"cells_raw":0,"read":"whole","date_system":"1900"}

{"sheet":"рус","index":0,"n_rows":539,"n_cols":20,"rows_kept":539,"cut":false,"hidden":false,"merged":[[0,5,0,18]]}
[null,null,null,null,null,"№ задания"]
["Фамилия","Наименование","Район","Параллель","Класс, за который участник выступает",1,2,3,4,5,6,7,8,9,10,11,12,13,14,"всего"]
["Урсаев ","Муниципальное автономное общеобразовательное учреждение \"Средняя общеобразовательная школа № 41 г. Челябинска\"","Курчатовский",4,4,1,5,4,5,4,5,3,3,6,7,2,3,6,6,{"$f":"SUM(F3:S3)","v":60}]
["Долгова","Муниципальное бюджетное общеобразовательное учреждение \"Средняя общеобразовательная школа № 68 г. Челябинска\" (филиал 2)","Ленинский",4,4,1,4,4,5,4,5,3,3,6,7,2,3,6,5,58]
["Абасова","Муниципальное бюджетное общеобразовательное учреждение \"Средняя общеобразовательная школа № 68 г. Челябинска\" (филиал 2)","Ленинский",4,4,1,5,4,5,1,5,2,3,5,7,2,3,6,5,54]
["Трошин","Муниципальное автономное общеобразовательное учреждение \"Лицей № 82 г. Челябинска\"","Металлургический",4,4,1,5,4,5,4,3,3,3,6,6,1,1,6,3,51]
["Багайчук ","Муниципальное автономное общеобразовательное учреждение \"Средняя общеобразовательная школа № 41 г. Челябинска\"","Курчатовский",4,4,0,5,4,3,3,3,3,3,6,7,1,3,6,4,51]
["Арефьев","Муниципальное автономное общеобразовательное учреждение \"Средняя общеобразовательная школа № 41 г. Челябинска\"","Курчатовский",4,4,1,4,4,3.5,3,3,3,3,5,7,2,2,6,3,49.5]
["Машкин","Муниципальное автономное общеобразовательное учреждение \"Средняя общеобразовательная школа с углубленным изучением отдельных предметов №104 г. Челябинска\"","Калининский",4,4,0,3,4,5,4,3,3,3,5,7,1,1,6,3,48]
["Рыкова","Муниципальное автономное общеобразовательное учреждение «Образовательный центр «НЬЮТОН» г. Челябинска»","Калининский",4,4,1,3,3,5,4,3,3,3,5,7,1,0,6,4,48]
["Галиханова","Муниципальное автономное общеобразовательное учреждение \"Академический лицей № 95 г.Челябинска\"","Курчатовский",4,4,1,4,4,0,4,5,1,3,5,7,2,1,5,5,47]
["Пляшник","Муниципальное автономное общеобразовательное учреждение \"Гимназия №76 г. Челябинска\"","Ленинский",4,4,0,3,2,2,4,5,3,3,4,7,2,1,5,6,47]
["Ермолаев","Муниципальное автономное общеобразовательное учреждение \"Академический лицей № 95 г.Челябинска\"","Курчатовский",4,4,1,4,4,0,4,3,2,3,5,7,2,1,6,4,46]
["Иодис","Муниципальное бюджетное общеобразовательное учреждение \"Средняя общеобразовательная школа № 68 г. Челябинска\" (филиал 2)","Ленинский",4,4,1,5,2,2,4,5,2,3,5,6,2,1,6,2,46]
["Федоненкова","частное общеобразовательное учреждение \"РЖД лицей № 4\"","Ленинский",1,4,0,4,4,1,3,3,3,3,6,7,2,2,6,2,46]
["Гаврилков","Муниципальное автономное общеобразовательное учреждение \"Лицей №77 г. Челябинска\"","Ленинский",4,4,1,2,4,4,2,5,2,3,2,7,2,2,6,3,45]
["Аюпова","Муниципальное бюджетное общеобразовательное учреждение \"Средняя общеобразовательная школа № 68 г. Челябинска\" (филиал 2)","Ленинский",4,4,1,4,4,2,3,3,2,3,4,6,2,2,6,3,45]
["Ибрагимов","Муниципальное автономное общеобразовательное учреждение \"Лицей №77 г. Челябинска\"","Ленинский",4,4,1,4,4,2,3,3,2,2,6,7,2,1,5,3,45]
["Матюхин","Муниципальное автономное общеобразовательное учреждение \"Гимназия №76 г. Челябинска\"","Ленинский",4,4,0,4,4,0,3,5,3,2,4,6,2,1,6,5,45]
["Прохоров","Муниципальное автономное общеобразовательное учреждение \"Лицей № 37 г. Челябинска\"","Ленинский",4,4,0,4,4,3,2,5,1,3,6,7,1,0,6,3,45]
["Гумметова","Муниципальное автономное общеобразовательное учреждение \"Гимназия № 96 г. Челябинска\"","Металлургический",4,4,1,4,3,0,4,3,2,3,6,7,1,1,6,4,45]
["Самонова","Муниципальное автономное общеобразовательное учреждение \"Гимназия №80 г. Челябинска\"","Советский",4,4,1,1,4,5,3,3,3,3,5,7,0,0,6,4,45]
["Ловягина","Муниципальное автономное общеобразовательное учреждение \"Гимназия №76 г. Челябинска\"","Ленинский",4,4,0,4,4,4.5,4,3,2,2,3,5,2,2,6,3,44.5]
["Морщакова","Муниципальное бюджетное общеобразовательное учреждение \"Средняя общеобразовательная школа № 68 г. Челябинска\" (филиал 2)","Ленинский",4,4,1,3,4,3.5,4,1,2,2,5,7,2,1,6,3,44.5]
["Самочкова","Муниципальное бюджетное общеобразовательное учреждение \"Средняя общеобразовательная школа № 45 г. Челябинска\"","Курчатовский",4,4,0,3,4,0,4,3,2,3,6,7,1,1,6,4,44]
["Невзоров","Муниципальное автономное общеобразовательное учреждение \"Гимназия №76 г. Челябинска\"","Ленинский",4,4,1,4,4,0,3,4,3,2,3,7,1,0,6,6,44]
["Рязанова","Муниципальное бюджетное общеобразовательное учреждение \"Средняя общеобразовательная школа № 68 г. Челябинска\" (филиал 2)","Ленинский",4,4,1,3,4,3,3,4,3,2,5,5,2,0,6,3,44]
["Самаркина","Муниципальное автономное общеобразовательное учреждение \"Гимназия №80 г. Челябинска\"","Советский",4,4,1,4,4,0,4,5,2,2,4,7,2,2,5,2,44]
["Школьников","Муниципальное автономное общеобразовательное учреждение \"Средняя общеобразовательная школа №153 г. Челябинска\"","Центральный",4,4,0,4,4,5,4,3,1,3,4,7,2,0,6,1,44]
["Кириллова","Муниципальное бюджетное общеобразовательное учреждение \"Гимназия №48 им. Н. Островского г. Челябинска\"","Тракторозаводский",4,4,0,4,3,0,4,3,2,3,6,7,2,0,6,4,44]
["Сорокин","Муниципальное автономное общеобразовательное учреждение \"Средняя общеобразовательная школа №154 г.Челябинска\"","Калининский",4,4,1,3,4,0,4,3,3,2,6,6,1,0,6,4,43]
["Бархатова","Муниципальное автономное общеобразовательное учреждение \"Средняя общеобразовательная школа № 91 г. Челябинска\"","Металлургический",4,4,0,4,3,0,4,3,2,3,6,6,1,1,6,4,43]
["Акифьев","Муниципальное бюджетное общеобразовательное учреждение \"Лицей № 11 г. Челябинска\"","Центральный",4,4,1,4,4,0,4,3,2,3,4,6,1,1,6,4,43]
["Белоусова","Муниципальное бюджетное общеобразовательное учреждение \"Лицей № 11 г. Челябинска\"","Центральный",4,4,1,4,3,0,4,3,3,2,4,7,1,1,5,5,43]
["Каева","Муниципальное автономное общеобразовательное учреждение \"Гимназия № 23 г. Челябинска им. В. Д. Луценко\"","Калининский",4,4,1,3,4,0,3,3,2,3,6,6,0,1,5,5,42]
["Харчиков","Муниципальное автономное общеобразовательное учреждение \"Лицей №97 г. Челябинска\"","Калининский",4,4,1,2,4,0,4,3,2,1,5,7,1,1,6,5,42]
["Сигалов","Муниципальное автономное общеобразовательное учреждение \"Лицей № 82 г. Челябинска\"","Металлургический",4,4,0,4,4,0,4,3,3,2,6,7,0,0,6,3,42]
["Толмачева","Муниципальное автономное общеобразовательное учреждение\" Лицей № 102 г. Челябинска\"","Тракторозаводский",4,4,1,4,3,0,4,3,3,2,4,6,2,0,5,5,42]
["Галимов","Муниципальное автономное общеобразовательное учреждение \"Лицей № 67 г. Челябинска\"","Центральный",4,4,0,4,4,0,3,3,1,3,6,7,1,1,6,3,42]
["Сенцова","Муниципальное автономное общеобразовательное учреждение «Многопрофильный лицей № 148 г. Челябинска»","Центральный",4,4,0,4,3,0,4,3,3,3,5,7,1,0,5,4,42]
["Вишняков","Муниципальное автономное общеобразовательное учреждение «Образовательный центр «НЬЮТОН» г. Челябинска»","Калининский",4,4,0,5,4,0,4,3,2,3,3,7,0,1,5,4,41]
["Клименко","Муниципальное автономное общеобразовательное учреждение \"Гимназия № 23 г. Челябинска им. В. Д. Луценко\"","Калининский",4,4,0,2,4,0,4,3,2,3,6,7,0,1,6,3,41]
["Тарасова","Муниципальное автономное общеобразовательное учреждение \"Лицей №97 г. Челябинска\"","Калининский",4,4,0,1,4,0,4,3,3,2,6,6,1,1,6,4,41]
["Шувалов","Муниципальное автономное общеобразовательное учреждение \"Лицей №97 г. Челябинска\"","Калининский",4,4,1,0,3,0,4,3,2,3,6,7,1,0,6,5,41]
["Леднев","Муниципальное автономное общеобразовательное учреждение \"Академический лицей № 95 г.Челябинска\"","Курчатовский",4,4,0,4,2,0,4,3,1,3,5,7,1,2,6,3,41]
["Павлова","Муниципальное автономное общеобразовательное учреждение \"Средняя общеобразовательная школа № 13 г. Челябинска\"","Курчатовский",4,4,0,4,4,0,4,5,1,3,5,6,0,1,6,2,41]
["Мехоношин","Муниципальное автономное общеобразовательное учреждение \"Средняя общеобразовательная школа № 94 г. Челябинска\"","Металлургический",4,4,0,2,4,0,4,3,3,1,6,6,2,0,6,4,41]
["Юсько","Муниципальное автономное общеобразовательное учреждение \"Средняя общеобразовательная школа № 15 г. Челябинска\"","Советский",4,4,0,4,3,0,4,3,2,2,6,6,1,0,5,5,41]
["Набильская","Муниципальное бюджетное общеобразовательное учреждение \"Гимназия №48 им. Н. Островского г. Челябинска\"","Тракторозаводский",4,4,0,4,4,0,3,3,1,2,4,7,1,0,6,6,41]
["Потапова","Муниципальное бюджетное общеобразовательное учреждение \"Гимназия №48 им. Н. Островского г. Челябинска\"","Тракторозаводский",4,4,1,2,4,0,4,3,2,3,5,7,1,1,5,3,41]
["Зияитдинова","Муниципальное автономное общеобразовательное учреждение \"Лицей № 67 г. Челябинска\"","Центральный",3,4,0,3,4,0,4,3,3,1,5,7,1,1,6,3,41]
["Терёхина","Муниципальное бюджетное общеобразовательное учреждение \"Гимназия №1 г. Челябинска\"","Центральный",4,4,0,3,4,0,4,3,2,3,6,6,0,0,6,4,41]
["Пономарёва","Муниципальное бюджетное общеобразовательное учреждение \"Средняя общеобразовательная школа №116 г. Челябинска\"","Тракторозаводский",4,4,0,3,4,0,4,3,3,3,3,7,2,0,6,3,41]
["Васильева","Муниципальное бюджетное общеобразовательное учреждение \"Средняя общеобразовательная школа №151 г. Челябинска\"","Калининский",4,4,0,3,4,0,3,3,1,3,6,7,1,0,6,3,40]
["Кирсанов","Муниципальное автономное общеобразовательное учреждение \"Средняя общеобразовательная школа с углубленным изучением отдельных предметов №104 г. Челябинска\"","Калининский",4,4,0,2,3,0,4,3,2,2,6,7,1,1,6,3,40]
["Корецкий","Муниципальное автономное общеобразовательное учреждение \"Лицей №97 г. Челябинска\"","Калининский",4,4,0,4,4,0,4,3,2,3,3,7,1,0,6,3,40]
["Хидиятуллин","Муниципальное автономное общеобразовательное учреждение \"Лицей №97 г. Челябинска\"","Калининский",4,4,0,5,3,0,3,5,3,3,0,7,2,0,5,4,40]
["Шатверян","Муниципальное автономное общеобразовательное учреждение \"Лицей №97 г. Челябинска\"","Калининский",4,4,0,2,4,0,4,3,2,3,5,7,1,0,6,3,40]
["Шубина","Муниципальное автономное общеобразовательное учреждение \"Средняя общеобразовательная школа с углубленным изучением отдельных предметов №104 г. Челябинска\"","Калининский",4,4,0,4,4,0,4,3,2,3,5,7,0,0,6,2,40]
["Ватутина","Муниципальное автономное общеобразовательное учреждение \"Академический лицей № 95 г.Челябинска\"","Курчатовский",4,4,0,4,4,0,4,3,3,2,5,7,1,0,5,2,40]
["Давыдик","Муниципальное автономное общеобразовательное учреждение \"Академический лицей № 95 г.Челябинска\"","Курчатовский",4,4,0,2,4,0,4,3,0,2,6,7,2,0,6,4,40]
["Козин","Муниципальное автономное общеобразовательное учреждение \"Академический лицей № 95 г.Челябинска\"","Курчатовский",4,4,0,4,4,0,2,3,2,3,4,7,1,0,6,4,40]
["Обухов","Муниципальное бюджетное общеобразовательное учреждение \"Средняя общеобразовательная школа № 89 г. Челябинска\"","Курчатовский",4,4,0,4,4,0,4,3,3,1,5,7,0,0,6,3,40]
["Остроушко","Муниципальное автономное общеобразовательное учреждение \"Академический лицей № 95 г.Челябинска\"","Курчатовский",4,4,1,2,4,0,4,3,3,2,4,7,1,0,6,3,40]
["Суховицкий","Муниципальное автономное общеобразовательное учреждение \"Гимназия № 26 г. Челябинска\"","Курчатовский",4,4,0,3,4,0,0,5,3,3,4,6,1,1,6,4,40]
["Бушков","Муниципальное автономное общеобразовательное учреждение \"Средняя общеобразовательная школа № 94 г. Челябинска\"","Металлургический",4,4,0,4,4,0,4,3,2,3,3,7,1,0,6,3,40]
["Бондаренко","Муниципальное бюджетное общеобразовательное учреждение \"Средняя общеобразовательная школа № 121 г. Челябинска\"","Советский",4,4,0,4,3,0,4,3,2,3,5,7,1,0,5,3,{"$f":"SUM(F67:S67)","v":40}]
["Савин","Муниципальное автономное общеобразовательное учреждение \"Гимназия №80 г. Челябинска\"","Советский",4,4,1,3,4,0,4,3,2,3,4,7,1,0,4,4,40]
["Бобырева","Муниципальное бюджетное общеобразовательное учреждение \"Гимназия №1 г. Челябинска\"","Центральный",4,4,0,3,4,0,4,3,2,3,6,5,1,0,5,4,40]
["Новожилова","Муниципальное бюджетное общеобразовательное учреждение \"Гимназия №1 г. Челябинска\"","Центральный",4,4,1,4,4,0,4,3,3,2,3,5,1,0,6,4,40]
["Гормаш","Муниципальное бюджетное общеобразовательное учреждение \"Средняя общеобразовательная школа №109 г.Челябинска\"","Калининский",4,4,0,3,3,0,2,3,3,3,6,7,0,0,6,3,39]
["Давыдов","Муниципальное автономное общеобразовательное учреждение \"Лицей №97 г. Челябинска\"","Калининский",4,4,0,2,3,0,4,3,3,1,6,7,1,0,5,4,39]
["Дмитриев","Муниципальное автономное общеобразовательное учреждение \"Средняя общеобразовательная школа с углубленным изучением отдельных предметов №104 г. Челябинска\"","Калининский",4,4,0,4,4,0,4,3,2,3,6,5,0,1,5,2,39]
["Мельников","Муниципальное автономное общеобразовательное учреждение \"Лицей №97 г. Челябинска\"","Калининский",4,4,0,0,4,0,3,3,3,3,5,7,2,0,5,4,39]
["Морозова","Муниципальное бюджетное общеобразовательное учреждение \"Средняя общеобразовательная школа №54 г. Челябинска\"","Калининский",4,4,0,4,3,0,4,3,1,3,3,7,1,0,6,4,39]
["Рыжков","Муниципальное Бюджетное Общеобразовательное Учреждение \"Средняя Общеобразовательная Школа №129 г. Челябинска\"","Калининский",4,4,0,4,4,0,3,3,3,3,3,7,1,0,5,3,39]
["Дударева","Муниципальное автономное общеобразовательное учреждение \"Академический лицей № 95 г.Челябинска\"","Курчатовский",4,4,1,3,4,4,4,0,2,2,4,5,1,0,6,3,39]
["Грудев","Муниципальное автономное общеобразовательное учреждение \"Лицей №77 г. Челябинска\"","Ленинский",4,4,1,2,3,1,4,3,2,2,3,7,2,2,6,1,39]
["Вешкаренко","Муниципальное автономное общеобразовательное учреждение \"Лицей № 82 г. Челябинска\"","Металлургический",4,4,0,4,3,0,3,3,2,2,5,7,0,0,6,4,39]
["Васильев","Муниципальное автономное общеобразовательное учреждение «Многопрофильный лицей № 148 г. Челябинска»","Центральный",4,4,0,4,3,0,4,3,2,3,3,7,1,0,6,3,39]
["Мартьянова","Муниципальное бюджетное общеобразовательное учреждение \"Гимназия №1 г. Челябинска\"","Центральный",4,4,0,3,4,0,4,3,1,3,3,7,1,0,6,4,39]
["Череднякова","Муниципальное бюджетное общеобразовательное учреждение \"Гимназия №1 г. Челябинска\"","Центральный",4,4,0,2,3,0,4,3,1,2,6,7,1,0,6,4,39]
["Малофеев","Муниципальное автономное общеобразовательное учреждение «Образовательный центр «НЬЮТОН» г. Челябинска»","Калининский",4,4,0,0,4,0,4,3,3,1,5,7,2,0,5,4,38]
["Микурова","Муниципальное автономное общеобразовательное учреждение \"Лицей № 35 г. Челябинска\"","Курчатовский",4,4,1,3,4,0,4,3,2,2,3,7,2,0,5,2,38]
["Паук","Муниципальное автономное общеобразовательное учреждение \"Академический лицей № 95 г.Челябинска\"","Курчатовский",4,4,1,4,3,0,2,3,3,2,2,5,2,1,6,4,38]
["Преснякова","Муниципальное автономное общеобразовательное учреждение \"Лицей № 35 г. Челябинска\"","Курчатовский",4,4,1,3,4,0,4,3,2,1,4,7,1,0,6,2,38]
["Усков","Муниципальное автономное общеобразовательное учреждение \"Средняя общеобразовательная школа № 41 г. Челябинска\"","Курчатовский",4,4,0,3,4,0,3,3,3,3,5,7,0,0,5,2,38]
["Цюкало","Муниципальное автономное общеобразовательное учреждение \"Лицей № 82 г. Челябинска\"","Металлургический",4,4,0,4,4,0,4,3,3,2,5,5,1,0,5,2,38]
["Киселёва","Муниципальное автономное общеобразовательное учреждение \"Гимназия №80 г. Челябинска\"","Советский",4,4,0,3,3,0,3,3,3,3,5,5,2,0,3,5,38]
["Попов","Муниципальное автономное общеобразовательное учреждение \"Гимназия №80 г. Челябинска\"","Советский",4,4,0,4,3,0,1,3,3,3,4,7,1,0,6,3,38]
["Тимофеева","Муниципальное автономное общеобразовательное учреждение \"Гимназия №80 г. Челябинска\"","Советский",4,4,0,4,4,0,3,3,3,3,4,5,1,1,5,2,38]
["Хабибуллина","Муниципальное автономное общеобразовательное учреждение \"Гимназия №80 г. Челябинска\"","Советский",4,4,0,4,4,0,3,3,1,2,5,7,1,2,4,2,38]
["Вензель","Муниципальное бюджетное общеобразовательное учреждение \"Гимназия №1 г. Челябинска\"","Центральный",4,4,0,3,4,0,3,3,3,1,4,6,2,0,6,3,38]
["Королева","Муниципальное бюджетное общеобразовательное учреждение \"Лицей № 11 г. Челябинска\"","Центральный",4,4,1,1,4,0,4,3,3,2,3,7,1,0,5,4,38]
["Петров","Муниципальное автономное общеобразовательное учреждение \"Средняя общеобразовательная школа №147 г. Челябинска\"","Центральный",4,4,0,1,3,0,4,3,2,3,5,7,2,0,5,3,38]
["Гранкова","Муниципальное автономное общеобразовательное учреждение \"Лицей №97 г. Челябинска\"","Калининский",4,4,0,3,4,0,4,3,2,2,3,7,1,0,5,3,37]
["Кувшинова","Муниципальное автономное общеобразовательное учреждение \"Лицей №97 г. Челябинска\"","Калининский",4,4,0,3,4,0,2,3,3,1,4,7,0,0,6,4,37]
["Куприянов","Муниципальное автономное общеобразовательное учреждение \"Лицей №97 г. Челябинска\"","Калининский",4,4,0,4,3,0,4,3,3,2,4,7,2,0,5,0,37]
["Мажирина","Муниципальное автономное общеобразовательное учреждение «Образовательный центр «НЬЮТОН» г. Челябинска»","Калининский",4,4,0,1,3,0,4,3,3,2,6,5,1,0,6,3,37]
["Соболева","Муниципальное автономное общеобразовательное учреждение \"Гимназия № 23 г. Челябинска им. В. Д. Луценко\"","Калининский",4,4,0,3,4,0,2,3,2,2,3,7,1,1,6,3,37]
["Третьякова","Муниципальное автономное общеобразовательное учреждение \"Гимназия № 23 г. Челябинска им. В. Д. Луценко\"","Калининский",4,4,0,3,4,0,1,3,3,2,3,6,1,1,6,4,37]
["Емельянова","Муниципальное бюджетное общеобразовательное учреждение \"Средняя общеобразовательная школа № 89 г. Челябинска\"","Курчатовский",4,4,0,3,4,0,4,3,2,2,3,7,0,0,6,3,37]
["Лебедева","Муниципальное автономное общеобразовательное учреждение \"Академический лицей № 95 г.Челябинска\"","Курчатовский",4,4,0,3,3,0,4,3,2,1,5,5,1,1,5,4,37]
["Перова","Муниципальное автономное общеобразовательное учреждение \"Лицей № 35 г. Челябинска\"","Курчатовский",4,4,0,4,4,0,3,3,2,3,3,6,0,0,6,3,37]
["Поповцева","Муниципальное автономное общеобразовательное учреждение \"Гимназия №93 г. Челябинска имени Александра Фомича Гелича\"","Курчатовский",4,4,0,3,4,0,1,3,3,1,3,7,1,1,6,4,37]
["Шамин","Муниципальное автономное общеобразовательное учреждение \"Академический лицей № 95 г.Челябинска\"","Курчатовский",4,4,0,4,4,0,4,3,1,1,4,7,0,0,5,4,37]
["Борисенкова","Муниципальное автономное общеобразовательное учреждение \"Средняя общеобразовательная школа №46 имени З.А. Космодемьянской города Челябинска\"","Ленинский",4,4,0,4,4,0,4,3,2,1,5,7,0,0,5,2,37]
["Мателинайте","Муниципальное автономное общеобразовательное учреждение \"Лицей №77 г. Челябинска\"","Ленинский",4,4,0,3,0,0,4,3,2,2,5,7,1,0,6,4,37]
["Секерина","Муниципальное автономное общеобразовательное учреждение \"Средняя общеобразовательная школа №46 имени З.А. Космодемьянской города Челябинска\"","Ленинский",4,4,0,3,3,0,3,3,0,3,5,7,0,0,6,4,37]
["Соколов","Муниципальное автономное общеобразовательное учреждение \"Лицей №77 г. Челябинска\"","Ленинский",4,4,1,4,4,0,4,3,3,2,2,5,0,0,5,4,37]
["Алексеева","Муниципальное автономное общеобразовательное учреждение \"Средняя общеобразовательная школа № 91 г. Челябинска\"","Металлургический",4,4,0,2,3,0,4,3,3,2,6,6,1,0,5,2,37]
["Худяков","Муниципальное автономное общеобразовательное учреждение \"Лицей № 82 г. Челябинска\"","Металлургический",4,4,0,0,4,0,3,3,3,3,6,7,0,0,5,3,37]
["Самцова","Муниципальное автономное общеобразовательное учреждение \"Гимназия №80 г. Челябинска\"","Советский",4,4,0,4,4,0,4,3,1,2,5,6,0,2,6,0,37]
["Селунский","Муниципальное автономное общеобразовательное учреждение \"Средняя общеобразовательная школа № 84 г. Челябинска\"","Тракторозаводский",4,4,1,0,4,0,4,3,1,1,3,7,1,0,6,6,37]
["Лисовская","Муниципальное бюджетное общеобразовательное учреждение \"Гимназия №1 г. Челябинска\"","Центральный",4,4,0,4,3,0,4,3,3,2,5,4,1,0,5,3,37]
["Окунева","Муниципальное бюджетное общеобразовательное учреждение \"Специальная (коррекционная) общеобразовательная школа-интернат для обучающихся и воспитанников с ограниченными возможностями здоровья (нарушение опорно-двигательного аппарата) №4 г. Челябинска\"","Центральный",4,4,0,4,4,0,4,3,0,2,6,5,0,0,6,3,37]
["Соколова","Муниципальное бюджетное общеобразовательное учреждение \"Прогимназия №90 г. Челябинска\"","Центральный",4,4,0,2,4,5,1,0,2,2,3,7,2,0,6,3,37]
["Сексяева","Муниципальное автономное общеобразовательное учреждение \"Средняя общеобразовательная школа №62 г. Челябинска\"","Тракторозаводский",4,4,0,4,4,0,3,5,1,1,3,7,1,0,6,2,37]
["Иманкулов","Муниципальное автономное общеобразовательное учреждение \"Образовательный центр № 7 г. Челябинска\"","Калининский",4,4,1,3,4,0,4,0,1,3,5,7,0,0,5,3,36]
["Мишин","Муниципальное автономное общеобразовательное учреждение \"Средняя общеобразовательная школа с углубленным изучением отдельных предметов №104 г. Челябинска\"","Калининский",4,4,0,4,4,0,2,3,2,2,5,6,0,1,5,2,36]
["Нидергаус","Муниципальное автономное общеобразовательное учреждение \"Лицей №97 г. Челябинска\"","Калининский",4,4,0,4,4,0,3,3,3,3,3,7,0,0,6,0,36]
["Трошин","Муниципальное автономное общеобразовательное учреждение \"Лицей №97 г. Челябинска\"","Калининский",4,4,1,2,4,0,3,3,3,3,0,6,1,0,6,4,36]
["Кондратьева","Муниципальное автономное общеобразовательное учреждение \"Гимназия №93 г. Челябинска имени Александра Фомича Гелича\"","Курчатовский",4,4,1,3,4,0,4,3,1,1,5,5,0,0,6,3,36]
["Коршунова","Муниципальное автономное общеобразовательное учреждение \"Образовательный центр № 5 г. Челябинска\"","Курчатовский",4,4,0,0,4,0,4,3,3,3,3,6,2,0,6,2,36]
["Никитин ","Муниципальное автономное общеобразовательное учреждение \"Средняя общеобразовательная школа № 41 г. Челябинска\"","Курчатовский",4,4,0,1,3,0,0,3,2,2,3,6,1,3,6,6,36]
["Раскостов","Муниципальное автономное общеобразовательное учреждение \"Образовательный центр № 2 г. Челябинска\"","Курчатовский",4,4,0,3,2,0,4,0,3,2,4,7,2,0,5,4,36]
["Адищев","Муниципальное бюджетное общеобразовательное учреждение \"Средняя общеобразовательная школа №75 г. Челябинска\"","Ленинский",4,4,0,3,3,0,0,5,1,3,5,7,1,1,5,2,36]
["Коновалова","Муниципальное бюджетное общеобразовательное учреждение \"Средняя общеобразовательная школа №75 г. Челябинска\"","Ленинский",4,4,0,4,4,0,4,3,1,2,3,7,1,0,4,3,36]
["Сизоненко","Муниципальное автономное общеобразовательное учреждение \"Лицей № 37 г. Челябинска\"","Ленинский",4,4,0,4,3,0,4,3,0,2,5,7,0,0,6,2,36]
["Суслова","Муниципальное бюджетное общеобразовательное учреждение \"Школа-интернат спортивного, спортивно-адаптивного и оздоровительного профиля г. Челябинска\"","Ленинский",null,4,0,4,4,0,4,3,1,3,3,5,1,0,5,3,36]
["Акошкин","Муниципальное автономное общеобразовательное учреждение \"Средняя общеобразовательная школа № 73 г. Челябинска\"","Металлургический",4,4,0,3,4,0,4,3,3,1,3,4,1,0,6,4,{"$f":"SUM(F131:S131)","v":36}]
["Григорьев","Муниципальное автономное общеобразовательное учреждение \"Средняя общеобразовательная школа № 73 г. Челябинска\"","Металлургический",4,4,0,4,4,0,4,3,0,2,4,5,1,0,6,3,36]
["Исламова","Муниципальное автономное общеобразовательное учреждение \"Лицей № 82 г. Челябинска\"","Металлургический",4,4,0,3,4,0,4,3,0,2,5,4,2,0,5,4,36]
["Мансурова","Муниципальное автономное общеобразовательное учреждение \"Лицей № 82 г. Челябинска\"","Металлургический",4,4,0,2,4,0,4,3,2,3,3,5,1,0,6,3,36]
["Аминева","Муниципальное бюджетное общеобразовательное учреждение \"Средняя общеобразовательная школа № 105 г. Челябинска имени В.П. Середкина\"","Советский",4,4,0,4,3,0,3,0,1,3,6,7,1,0,4,4,36]
["Гудкова","Муниципальное бюджетное общеобразовательное учреждение \"Средняя общеобразовательная школа № 144 г.Челябинска\"","Советский",4,4,1,4,2,0,1,3,3,3,4,7,2,0,6,0,36]
["Захарова","Муниципальное бюджетное общеобразовательное учреждение \"Средняя общеобразовательная школа № 105 г. Челябинска имени В.П. Середкина\"","Советский",4,4,0,4,4,0,4,3,1,3,4,7,1,1,4,0,36]
["Зискина","Муниципальное автономное общеобразовательное учреждение \"Гимназия №80 г. Челябинска\"","Советский",4,4,0,4,4,0,2,3,3,2,6,5,0,0,5,2,36]
["Зырянова","Муниципальное автономное общеобразовательное учреждение \"Средняя общеобразовательная школа № 15 г. Челябинска\"","Советский",4,4,0,3,3,0,4,3,3,1,3,6,0,0,5,5,36]
["Темных","Муниципальное бюджетное общеобразовательное учреждение \"Средняя общеобразовательная школа № 121 г. Челябинска\"","Советский",4,4,0,3,4,0,4,3,2,1,4,7,0,0,6,2,36]
["Ерахтин","Муниципальное бюджетное общеобразовательное учреждение \"Средняя общеобразовательная школа №107 г. Челябинска\"","Тракторозаводский",4,4,0,4,4,0,3,5,2,2,0,7,1,0,5,3,36]
["Демко","Муниципальное автономное общеобразовательное учреждение «Многопрофильный лицей № 148 г. Челябинска»","Центральный",4,4,0,4,4,0,4,0,2,2,6,5,0,0,6,3,36]
["Луценко","Муниципальное бюджетное общеобразовательное учреждение \"Гимназия №48 им. Н. Островского г. Челябинска\"","Тракторозаводский",4,4,0,4,3,0,3,3,2,2,3,7,1,1,5,2,36]
["Дубинина","Муниципальное автономное общеобразовательное учреждение \"Лицей №97 г. Челябинска\"","Калининский",4,4,0,3,3,0,1,3,2,2,3,6,1,1,5,5,35]
["Енидеркина","Муниципальное автономное общеобразовательное учреждение \"Гимназия № 23 г. Челябинска им. В. Д. Луценко\"","Калининский",4,4,1,2,3,0,0,3,2,3,4,7,0,0,6,4,35]
["Исаев","Муниципальное автономное общеобразовательное учреждение \"Лицей №97 г. Челябинска\"","Калининский",4,4,0,0,3,0,4,3,1,1,6,7,1,0,5,4,35]
["Катернога","Муниципальное автономное общеобразовательное учреждение \"Средняя общеобразовательная школа № 25 г. Челябинска\"","Калининский",4,4,1,2,3,0,2,3,2,2,4,6,1,0,5,4,35]
["Кобелева","Муниципальное автономное общеобразовательное учреждение \"Образовательный центр № 7 г. Челябинска\"","Калининский",4,4,0,4,4,0,2,3,1,2,5,7,0,0,6,1,35]
["Корякин","Муниципальное автономное общеобразовательное учреждение \"Лицей №97 г. Челябинска\"","Калининский",4,4,0,0,3,0,3,3,2,3,3,7,1,0,6,4,35]
["Оленева","Муниципальное автономное общеобразовательное учреждение \"Лицей №97 г. Челябинска\"","Калининский",4,4,0,0,2,0,4,3,2,2,5,6,1,0,5,5,35]
["Пахоруков","Муниципальное автономное общеобразовательное учреждение \"Лицей №97 г. Челябинска\"","Калининский",4,4,0,3,3,0,4,0,3,1,6,6,1,0,6,2,35]
["Придатко","Муниципальное автономное общеобразовательное учреждение \"Средняя общеобразовательная школа с углубленным изучением отдельных предметов №104 г. Челябинска\"","Калининский",4,4,0,0,4,0,3,3,1,2,6,7,1,0,6,2,35]
["Радийчук","Муниципальное бюджетное общеобразовательное учреждение \"Средняя общеобразовательная школа № 150 г. Челябинска\"","Калининский",4,4,0,0,4,0,4,0,3,3,6,7,1,0,5,2,35]
["Резникова","Муниципальное автономное общеобразовательное учреждение \"Гимназия № 23 г. Челябинска им. В. Д. Луценко\"","Калининский",4,4,0,2,4,0,4,3,2,1,5,6,2,0,6,0,35]
["Баранова","Муниципальное бюджетное общеобразовательное учреждение \"Средняя общеобразовательная школа № 22 г. Челябинска\" \"Кадетская (казачья) школа\"","Курчатовский",4,4,0,3,4,0,3,0,2,1,5,7,0,0,6,4,35]
["Епифанова","Муниципальное автономное общеобразовательное учреждение \"Академический лицей № 95 г.Челябинска\"","Курчатовский",4,4,1,4,4,0,4,3,2,2,0,5,1,0,6,3,35]
["Ефимьев","Муниципальное автономное общеобразовательное учреждение \"Лицей № 35 г. Челябинска\"","Курчатовский",4,4,0,2,4,0,0,3,2,3,2,7,0,1,6,5,35]
["Кирякова","Муниципальное автономное общеобразовательное учреждение \"Образовательный центр № 2 г. Челябинска\"","Курчатовский",4,4,0,3,3,0,4,3,2,1,4,7,0,0,6,2,35]
["Михайленко","Муниципальное автономное общеобразовательное учреждение \"Академический лицей № 95 г.Челябинска\"","Курчатовский",4,4,0,3,3,0,4,3,1,2,5,7,0,0,4,3,35]
["Савостин","Муниципальное автономное общеобразовательное учреждение \"Академический лицей № 95 г.Челябинска\"","Курчатовский",4,4,1,2,3,0,4,3,2,3,0,7,1,0,5,4,35]
["Скляров","Муниципальное автономное общеобразовательное учреждение \"Гимназия № 26 г. Челябинска\"","Курчатовский",4,4,0,3,3,0,4,3,1,2,5,5,1,0,6,2,35]
["Шарапов","Муниципальное автономное общеобразовательное учреждение \"Академический лицей № 95 г.Челябинска\"","Курчатовский",4,4,0,4,3,0,3,0,2,3,3,7,2,0,5,3,35]
["Бойкова","Муниципальное автономное общеобразовательное учреждение \"Лицей № 82 г. Челябинска\"","Металлургический",4,4,0,2,3,0,2,3,1,3,6,6,0,0,5,4,35]
["Бурамбаева","Муниципальное автономное общеобразовательное учреждение \"Средняя общеобразовательная школа № 73 г. Челябинска\"","Металлургический",4,4,0,3,4,2,0,3,3,3,3,5,0,0,6,3,35]
["Истомин","Муниципальное автономное общеобразовательное учреждение \"Средняя общеобразовательная школа № 73 г. Челябинска\"","Металлургический",4,4,1,4,4,0,1,3,3,3,3,5,0,1,5,2,35]
["Климов","Муниципальное автономное общеобразовательное учреждение \"Гимназия №80 г. Челябинска\"","Советский",4,4,0,4,3,0,4,3,2,1,3,5,1,1,5,3,35]
["Гайсина","Муниципальное автономное общеобразовательное учреждение \"Средняя общеобразовательная школа №59 г.Челябинска\"","Тракторозаводский",4,4,0,1,4,0,4,3,3,1,4,7,0,0,6,2,35]
["Козлова","Муниципальное бюджетное общеобразовательное учреждение \"Гимназия № 10 г. Челябинска\"","Центральный",4,4,0,4,4,0,4,0,2,3,2,7,0,0,6,3,35]
["Комиссарова","Муниципальное бюджетное общеобразовательное учреждение \"Лицей № 11 г. Челябинска\"","Центральный",4,4,0,1,4,0,2,3,2,3,3,7,1,1,5,3,35]
["Багаутдинова","Муниципальное бюджетное общеобразовательное учреждение \"Гимназия №48 им. Н. Островского г. Челябинска\"","Тракторозаводский",4,4,1,2,4,0,1,5,3,3,3,4,0,0,6,3,35]
["Исакова","Муниципальное автономное общеобразовательное учреждение «Образовательный центр «НЬЮТОН» г. Челябинска»","Калининский",4,4,0,4,4,0,0,3,1,2,6,7,0,1,6,0,34]
["Томилов","Муниципальное бюджетное общеобразовательное учреждение \"Средняя общеобразовательная школа №109 г.Челябинска\"","Калининский",4,4,0,0,4,0,4,3,1,3,4,7,1,0,4,3,34]
["Федченко","Частное общеобразовательное учреждение «Челябинская православная гимназия во имя Святого Праведного Симеона Верхотурского Чудотворца»","Калининский",4,4,0,0,3,0,3,3,3,2,3,7,0,0,4,6,34]
["Шмаков","Муниципальное автономное общеобразовательное учреждение \"Средняя общеобразовательная школа №154 г.Челябинска\"","Калининский",4,4,0,4,3,0,4,3,2,2,0,6,1,0,6,3,34]
["Богаткина","Муниципальное бюджетное общеобразовательное учреждение \"Средняя общеобразовательная школа № 89 г. Челябинска\"","Курчатовский",4,4,0,4,4,0,4,3,0,3,1,7,0,0,5,3,34]
["Бугаенко","Муниципальное автономное общеобразовательное учреждение \"Гимназия №93 г. Челябинска имени Александра Фомича Гелича\"","Курчатовский",4,4,0,4,4,0,3,3,0,1,4,7,0,0,6,2,34]
["Кровяков","Муниципальное автономное общеобразовательное учреждение \"Академический лицей № 95 г.Челябинска\"","Курчатовский",4,4,0,4,4,0,3,3,2,1,1,7,1,0,6,2,34]
["Горшкова","Муниципальное автономное общеобразовательное учреждение \"Гимназия №76 г. Челябинска\"","Ленинский",4,4,1,3,4,0,0,3,2,2,4,5,0,0,5,5,34]
["Думендяк","Муниципальное автономное общеобразовательное учреждение \"Лицей №77 г. Челябинска\"","Ленинский",4,4,0,3,3,0,4,5,1,3,1,7,1,0,6,0,34]
["Евсеенкова","частное общеобразовательное учреждение \"РЖД лицей № 4\"","Ленинский",1,4,0,0,3,4,0,0,1,2,4,7,2,1,6,4,34]
["Мошкова","Муниципальное автономное общеобразовательное учреждение \"Лицей № 37 г. Челябинска\"","Ленинский",4,4,0,4,4,0,1,3,2,2,4,5,1,0,6,2,34]
["Верина","Муниципальное автономное общеобразовательное учреждение \"Средняя общеобразовательная школа № 91 г. Челябинска\"","Металлургический",4,4,0,0,4,0,2,3,1,3,6,6,1,1,5,2,34]
["Гончаренко","Муниципальное автономное общеобразовательное учреждение \"Лицей № 82 г. Челябинска\"","Металлургический",4,4,0,2,4,0,4,3,3,1,3,4,1,0,6,3,34]
["Медведев","Муниципальное автономное общеобразовательное учреждение \"Гимназия № 96 г. Челябинска\"","Металлургический",4,4,0,2,3,0,0,5,0,3,5,6,1,0,6,3,34]
["Журавлев","Муниципальное автономное общеобразовательное учреждение \"Гимназия №80 г. Челябинска\"","Советский",4,4,0,1,4,0,4,0,2,2,5,7,0,0,6,3,34]
["Клеймёнова","Муниципальное автономное общеобразовательное учреждение \"Лицей № 142 г.Челябинска\"","Советский",4,4,1,2,2,0,0,5,2,2,6,7,0,1,5,1,34]
["Огаркова","Муниципальное бюджетное общеобразовательное учреждение \"Средняя общеобразовательная школа № 131 г. Челябинска\"","Советский",4,4,0,4,2,0,4,3,1,2,6,5,1,2,4,0,34]
["Тимерова","Муниципальное автономное общеобразовательное учреждение \"Лицей № 142 г.Челябинска\"","Советский",4,4,0,4,3,0,4,0,2,1,6,6,0,0,5,3,34]
["Туманов","Муниципальное автономное общеобразовательное учреждение \"Гимназия №80 г. Челябинска\"","Советский",4,4,0,3,4,0,1,3,2,1,4,7,0,0,4,5,34]
["Удалов","Муниципальное автономное общеобразовательное учреждение \"Средняя общеобразовательная школа № 98 г. Челябинска\"","Советский",4,4,0,3,4,0,4,3,2,2,2,6,1,0,4,3,34]
["Шашлов","Муниципальное автономное общеобразовательное учреждение \"Средняя общеобразовательная школа № 43 г. Челябинска\"","Советский",4,4,0,4,3,0,4,3,2,2,3,5,1,0,5,2,34]
["Яхина","Муниципальное автономное общеобразовательное учреждение \"Средняя общеобразовательная школа № 43 г. Челябинска\"","Советский",4,4,1,4,4,0,4,0,2,2,3,7,1,0,3,3,34]
["Ильиных","Муниципальное бюджетное общеобразовательное учреждение \"Гимназия №48 им. Н. Островского г. Челябинска\"","Тракторозаводский",4,4,0,2,4,0,2,5,2,3,3,5,1,0,6,1,34]
["Ребковец","Муниципальное автономное общеобразовательное учреждение \"Средняя общеобразовательная школа № 84 г. Челябинска\"","Тракторозаводский",4,4,0,0,3,0,4,3,0,3,4,7,0,0,6,4,34]
["Гусарова","Муниципальное бюджетное общеобразовательное учреждение \"Гимназия №1 г. Челябинска\"","Центральный",4,4,0,4,2,0,4,3,2,3,4,4,1,0,6,1,{"$f":"SUM(F195:S195)","v":34}]
["Сафронова","Муниципальное бюджетное общеобразовательное учреждение \"Гимназия №1 г. Челябинска\"","Центральный",4,4,0,1,2,0,4,3,1,3,3,6,2,0,6,3,34]
["Шакмаков","Муниципальное автономное общеобразовательное учреждение «Многопрофильный лицей № 148 г. Челябинска»","Центральный",4,4,1,3,4,0,3,0,0,2,5,5,1,0,6,4,34]
["Шибанова","Муниципальное бюджетное общеобразовательное учреждение \"Гимназия №1 г. Челябинска\"","Центральный",4,4,0,4,4,0,2,0,2,3,4,5,2,1,4,3,34]
["Абросимова","Муниципальное автономное общеобразовательное учреждение \"Средняя общеобразовательная школа с углубленным изучением отдельных предметов №104 г. Челябинска\"","Калининский",4,4,0,3,2,0,3,3,3,1,3,7,0,0,5,3,33]
["Белоусова","Муниципальное автономное общеобразовательное учреждение \"Лицей №97 г. Челябинска\"","Калининский",4,4,0,0,2,0,3,0,3,3,3,7,1,0,6,5,33]
["Глушаева","Муниципальное автономное общеобразовательное учреждение \"Образовательный центр № 7 г. Челябинска\"","Калининский",4,4,0,4,2,0,4,3,2,3,2,7,1,0,5,0,33]
["Кошманова","Муниципальное автономное общеобразовательное учреждение \"Гимназия № 23 г. Челябинска им. В. Д. Луценко\"","Калининский",4,4,0,3,4,0,2,3,2,2,6,7,1,0,3,0,33]
["Красноперова","Муниципальное автономное общеобразовательное учреждение \"Средняя общеобразовательная школа №154 г.Челябинска\"","Калининский",4,4,0,4,4,0,4,3,1,2,0,6,1,0,5,3,33]
["Махова","Муниципальное автономное общеобразовательное учреждение \"Лицей №97 г. Челябинска\"","Калининский",4,4,1,0,0,0,3,3,2,3,3,7,1,1,5,4,33]
["Мисбах","Муниципальное бюджетное общеобразовательное учреждение \"Средняя общеобразовательная школа № 150 г. Челябинска\"","Калининский",4,4,0,3,4,0,4,3,2,2,4,6,0,0,5,0,33]
["Никитина","Муниципальное автономное общеобразовательное учреждение \"Средняя общеобразовательная школа с углубленным изучением отдельных предметов №104 г. Челябинска\"","Калининский",4,4,1,0,4,0,4,0,1,3,3,7,2,0,5,3,33]
["Потапова","Муниципальное Бюджетное Общеобразовательное Учреждение \"Средняя Общеобразовательная Школа №129 г. Челябинска\"","Калининский",4,4,0,3,3,0,3,0,2,3,4,5,1,0,6,3,33]
["Пьянова","Муниципальное автономное общеобразовательное учреждение \"Средняя общеобразовательная школа №78 г. Челябинска\"","Калининский",4,4,1,2,4,0,1,3,0,3,4,7,0,0,5,3,33]
["Хаиров","Муниципальное автономное общеобразовательное учреждение \"Средняя общеобразовательная школа с углубленным изучением отдельных предметов №104 г. Челябинска\"","Калининский",4,4,0,2,4,0,1,0,2,2,4,7,1,1,6,3,33]
["Буланникова","Муниципальное автономное общеобразовательное учреждение \"Средняя общеобразовательная школа № 13 г. Челябинска\"","Курчатовский",4,4,0,4,4,0,0,3,2,1,5,6,0,1,6,1,33]
["Логвиненко","Муниципальное автономное общеобразовательное учреждение \"Образовательный центр № 5 г. Челябинска\"","Курчатовский",4,4,0,4,4,0,3,5,1,3,0,4,1,0,6,2,33]
["Зинченко","Муниципальное бюджетное общеобразовательное учреждение \"Средняя общеобразовательная школа № 99 г. Челябинска\"","Ленинский",4,4,0,3,4,0,4,3,1,2,3,7,0,0,4,2,33]
["Коконина","Муниципальное автономное общеобразовательное учреждение \"Гимназия №76 г. Челябинска\"","Ленинский",4,4,0,3,3,0,1,5,1,1,3,7,1,0,6,2,33]
["Комаров","Муниципальное автономное общеобразовательное учреждение «Средняя общеобразовательная школа № 108 г.Челябинска имени Героя Российской Федерации А.В.Яковлева»","Ленинский",4,4,0,2,4,0,4,3,1,1,3,7,1,0,4,3,33]
["Шумаров","Муниципальное бюджетное общеобразовательное учреждение \"Средняя общеобразовательная школа №75 г. Челябинска\"","Ленинский",4,4,0,0,4,0,3,3,1,1,5,6,1,0,6,3,33]
["Голованов","Муниципальное автономное общеобразовательное учреждение \"Средняя общеобразовательная школа № 91 г. Челябинска\"","Металлургический",4,4,0,3,2,0,4,3,2,2,2,5,2,0,6,2,33]
["Дятлов","Муниципальное автономное общеобразовательное учреждение\" Лицей № 102 г. Челябинска\"","Тракторозаводский",4,4,0,3.5,3,0,3,3,2,1,3,6,0,0,5.5,3,33]
["Вахрушев","Муниципальное бюджетное общеобразовательное учреждение \"Гимназия № 10 г. Челябинска\"","Центральный",4,4,0,4,4,0,3,3,3,3,3,5,1,0,0,4,33]
["Ершов","Муниципальное автономное общеобразовательное учреждение \"Средняя общеобразовательная школа №153 г. Челябинска\"","Центральный",4,4,0,2,4,0,4,3,2,2,5,4,1,0,5,1,33]
["Плюгина","Муниципальное автономное общеобразовательное учреждение «Многопрофильный лицей № 148 г. Челябинска»","Центральный",4,4,0,4,4,0,2,0,1,3,4,5,1,0,6,3,33]
["Суетина","Муниципальное бюджетное общеобразовательное учреждение \"Гимназия №1 г. Челябинска\"","Центральный",4,4,0,3,4,0,4,3,3,2,4,5,1,1,0,3,33]
["Федотова","Муниципальное бюджетное общеобразовательное учреждение \"Лицей № 11 г. Челябинска\"","Центральный",4,4,0,3,2,0,2,3,3,3,3,5,0,0,5,4,33]
["Измоденова","Муниципальное автономное общеобразовательное учреждение \"Средняя общеобразовательная школа № 73 г. Челябинска\"","Металлургический",4,4,0,0,4,0,1,0,2,2,6,7,1,0,5,4,32]
["Хубиев","Муниципальное автономное общеобразовательное учреждение \"Лицей № 82 г. Челябинска\"","Металлургический",4,4,0,4,4,0,4,0,2,3,4,4,0,0,5,2,32]
["Иванова","Муниципальное автономное общеобразовательное учреждение \"Гимназия № 23 г. Челябинска им. В. Д. Луценко\"","Калининский",4,4,0,0,3,0,4,3,3,2,4,6,1,0,6,0,32]
["Леснов","Частное общеобразовательное учреждение «Челябинская православная гимназия во имя Святого Праведного Симеона Верхотурского Чудотворца»","Калининский",4,4,0,4,4,0,4,3,0,0,6,7,0,0,4,0,32]
["Назарова","Муниципальное бюджетное общеобразовательное учреждение \"Средняя общеобразовательная школа № 150 г. Челябинска\"","Калининский",4,4,0,3,0,0,4,3,3,3,3,5,1,0,4,3,32]
["Пономарева","Муниципальное автономное общеобразовательное учреждение \"Образовательный Центр № 1 \"","Калининский",4,4,0,3,4,0,1,3,1,1,5,7,1,0,6,0,32]
["Прокопьева","Муниципальное автономное общеобразовательное учреждение \"Гимназия № 23 г. Челябинска им. В. Д. Луценко\"","Калининский",4,4,0,3,2,0,4,3,0,2,6,5,2,0,5,0,32]
["Райдер","Муниципальное автономное общеобразовательное учреждение «Образовательный центр «НЬЮТОН» г. Челябинска»","Калининский",4,4,0,5,3,0,2,0,2,1,5,7,1,0,4,2,32]
["Хизбуллин","Муниципальное бюджетное общеобразовательное учреждение \"Средняя общеобразовательная школа №54 г. Челябинска\"","Калининский",4,4,0,4,4,0,4,0,2,2,4,6,0,0,6,0,32]
["Шеметова","Муниципальное автономное общеобразовательное учреждение \"Образовательный Центр № 1 \"","Калининский",4,4,1,0,4,0,4,3,2,1,6,5,0,1,5,0,32]
["Буташов","Муниципальное автономное общеобразовательное учреждение \"Средняя общеобразовательная школа № 118 имени Героя Советского Союза Кузнецова Н.И города Челябинска\"","Курчатовский",4,4,0,4,4,0,4,0,3,3,3,2,0,0,5,4,32]
["Ефимов","Муниципальное автономное общеобразовательное учреждение \"Средняя общеобразовательная школа № 13 г. Челябинска\"","Курчатовский",4,4,0,0,4,0,2,3,0,3,5,7,1,0,6,1,32]
["Руднев","Муниципальное автономное общеобразовательное учреждение \"Образовательный центр № 2 г. Челябинска\"","Курчатовский",4,4,0,4,4,0,2,0,1,3,0,7,1,0,6,4,32]
["Гордеев","Муниципальное автономное общеобразовательное учреждение \"Гимназия №76 г. Челябинска\"","Ленинский",4,4,0,4,2,0,4,3,3,2,2,6,0,0,5,1,32]
["Скороходова","Муниципальное бюджетное общеобразовательное учреждение \"Школа-интернат спортивного, спортивно-адаптивного и оздоровительного профиля г. Челябинска\"","Ленинский",null,4,1,0,3,0,3,3,2,2,2,7,0,1,6,2,32]
["Соловьева","Муниципальное автономное общеобразовательное учреждение \"Лицей № 37 г. Челябинска\"","Ленинский",4,4,0,1,3,0,3,3,0,3,4,7,1,0,5,2,32]
["Политова","Муниципальное автономное общеобразовательное учреждение \"Средняя общеобразовательная школа № 91 г. Челябинска\"","Металлургический",4,4,1,1,3,0,2,3,0,1,6,5,1,0,6,3,32]
["Бесараб","Муниципальное автономное общеобразовательное учреждение \"Средняя общеобразовательная школа № 15 г. Челябинска\"","Советский",4,4,0,3,3,0,3,0,2,3,3,6,1,0,6,2,32]
["Вайсбек","Муниципальное автономное общеобразовательное учреждение \"Гимназия №80 г. Челябинска\"","Советский",4,4,0,1,4,0,3,3,2,2,3,6,2,1,5,0,32]
["Сокол","Муниципальное бюджетное общеобразовательное учреждение \"Средняя общеобразовательная школа № 17 им. Голендухина А.Н. г.Челябинска\"","Советский",4,4,0,4,0,0,3,3,0,2,3,7,1,0,5,4,32]
["Галимурзина","Муниципальное бюджетное общеобразовательное учреждение \"Средняя общеобразовательная школа №116 г. Челябинска\"","Тракторозаводский",4,4,1,2,4,0,2,5,1,2,3,4,0,0,5,3,32]
["Васильев","Муниципальное бюджетное общеобразовательное учреждение \"Лицей № 11 г. Челябинска\"","Центральный",4,4,0,1,3,0,4,0,2,2,5,6,0,1,3,5,32]
["Казанцев","Муниципальное бюджетное общеобразовательное учреждение \"Гимназия №1 г. Челябинска\"","Центральный",4,4,0,3,3,0,4,3,2,3,3,5,0,2,0,4,32]
["Петер","Муниципальное бюджетное общеобразовательное учреждение \"Лицей № 11 г. Челябинска\"","Центральный",4,4,0,0,3,0,4,3,1,2,6,5,0,0,5,3,32]
["Таций","Муниципальное бюджетное общеобразовательное учреждение \"Гимназия №1 г. Челябинска\"","Центральный",4,4,0,3,3,0,4,0,1,3,3,4,0,1,6,4,32]
["Михальцова","Муниципальное бюджетное общеобразовательное учреждение \"Образовательный центр № 3 имени В.К. Белоусова\"","Тракторозаводский",4,4,1,2,4,0,4,0,1,1,3,6,0,0,6,4,32]
["Носова","Муниципальное бюджетное общеобразовательное учреждение \"Средняя общеобразовательная школа № 81 г. Челябинска имени Героя Советского Союза Мусы Джалиля\"","Тракторозаводский",4,4,1,0,4,0,3,3,3,1,4,4,1,0,6,2,32]
["Пашнина","Муниципальное автономное общеобразовательное учреждение \"Средняя общеобразовательная школа № 84 г. Челябинска\"","Тракторозаводский",4,4,1,3,4,0,0,3,0,2,3,6,0,0,6,4,32]
["Чуванова","Муниципальное Бюджетное Общеобразовательное Учреждение \"Лицей № 120 г. Челябинска\"","Тракторозаводский",4,4,0,1,4,0,4,3,0,3,2,7,1,0,6,1,32]
["Шегуров","Муниципальное автономное общеобразовательное учреждение \"Средняя общеобразовательная школа № 112 г. Челябинска\"","Тракторозаводский",4,4,0,1,4,0,1,5,3,2,4,4,0,0,6,2,32]
["Акулов","Муниципальное автономное общеобразовательное учреждение «Образовательный центр «НЬЮТОН» г. Челябинска»","Калининский",4,4,0,4,3,0,0,0,2,3,4,5,1,0,6,3,31]
["Власов","Муниципальное автономное общеобразовательное учреждение \"Средняя общеобразовательная школа №36 г. Челябинска\"","Калининский",4,4,0,1,3,0,3,3,0,1,5,7,0,0,5,3,31]
["Гнедков","Муниципальное автономное общеобразовательное учреждение \"Образовательный Центр № 1 \"","Калининский",4,4,0,0,4,0,0,3,2,2,4,7,1,1,4,3,31]
["Соколов","Муниципальное автономное общеобразовательное учреждение \"Средняя общеобразовательная школа с углубленным изучением отдельных предметов №104 г. Челябинска\"","Калининский",4,4,0,3,4,0,2,3,2,2,0,6,0,0,6,3,31]
["Ткач","Муниципальное автономное общеобразовательное учреждение \"Средняя общеобразовательная школа с углубленным изучением отдельных предметов №104 г. Челябинска\"","Калининский",4,4,0,2,3,0,0,3,2,2,6,6,1,0,5,1,31]
["Чащина","Муниципальное автономное общеобразовательное учреждение \"Средняя общеобразовательная школа №154 г.Челябинска\"","Калининский",4,4,1,3,3,0,0,3,2,1,3,6,1,0,5,3,31]
["Алымова","Муниципальное бюджетное общеобразовательное учреждение \"Средняя общеобразовательная школа № 4 г. Челябинска\"","Курчатовский",4,4,0,2,4,0,4,3,1,1,3,6,1,0,4,2,{"$f":"SUM(F259:S259)","v":31}]
["Иванов","Муниципальное автономное общеобразовательное учреждение \"Академический лицей № 95 г.Челябинска\"","Курчатовский",4,4,0,0,3,0,4,0,3,2,3,6,0,0,6,4,31]
["Муллабаева","Муниципальное бюджетное общеобразовательное учреждение \"Средняя общеобразовательная школа №12 г. Челябинска\"","Курчатовский",4,4,0,3,3,0,4,0,1,1,3,5,1,0,6,4,31]
["Новожилова","Муниципальное автономное общеобразовательное учреждение \"Средняя общеобразовательная школа № 152 г. Челябинска\"","Курчатовский",4,4,1,4,1,0,2,3,1,3,3,6,1,1,3,2,31]
["Белосохова","Муниципальное автономное общеобразовательное учреждение \"Гимназия №100 г. Челябинска\"","Ленинский",4,4,0,3,4,0,1,3,1,3,2,7,1,1,5,0,31]
["Вандышев","Муниципальное автономное общеобразовательное учреждение \"Лицей №77 г. Челябинска\"","Ленинский",4,4,0,5,0,0,3,3,2,3,3,5,1,0,6,0,31]
["Ибрагимова","Муниципальное автономное общеобразовательное учреждение \"Средняя общеобразовательная школа №130 г. Челябинска\"","Ленинский",4,4,0,0,3,0,4,3,3,1,1,7,0,0,6,3,31]
["Карсакова","Муниципальное автономное общеобразовательное учреждение \"Гимназия №100 г. Челябинска\"","Ленинский",4,4,0,1,3,0,3,3,2,1,4,5,1,0,5,3,31]
["Мусин","Муниципальное автономное общеобразовательное учреждение \"Лицей №77 г. Челябинска\"","Ленинский",4,4,0,0,4,0,3,3,3,2,5,5,0,0,6,0,31]
["Низамов","Муниципальное автономное общеобразовательное учреждение \"Лицей № 82 г. Челябинска\"","Металлургический",4,4,0,4,3,0,4,3,2,2,2,5,1,0,4,1,31]
["Горяйнов","Муниципальное бюджетное общеобразовательное учреждение \"Средняя общеобразовательная школа № 58 г. Челябинска\"","Советский",4,4,1,2,3,0,1,3,2,3,2,6,1,1,4,2,31]
["Молчанова","Муниципальное бюджетное общеобразовательное учреждение \"Средняя общеобразовательная школа № 58 г. Челябинска\"","Советский",4,4,0,3,2,0,0,5,1,1,3,6,2,0,5,3,31]
["Боровинская","Муниципальное автономное общеобразовательное учреждение \"Средняя общеобразовательная школа №62 г. Челябинска\"","Тракторозаводский",4,4,0,0,3,0,0,5,1,2,5,7,0,0,5,3,31]
["Салыкаева","Муниципальное Бюджетное Общеобразовательное Учреждение \"Лицей № 120 г. Челябинска\"","Тракторозаводский",4,4,0,4,3,0,0,3,0,1,2,7,1,0,6,4,31]
["Тяканова","Муниципальное бюджетное общеобразовательное учреждение \"Средняя общеобразовательная школа №116 г. Челябинска\"","Тракторозаводский",4,4,0,0,3,0,4,3,2,3,2,3,1,0,6,4,31]
["Винокурова","Муниципальное бюджетное общеобразовательное учреждение \"Прогимназия №90 г. Челябинска\"","Центральный",4,4,0,4,4,0,0,3,2,3,3,4,1,0,5,2,31]
["Гордеева","Муниципальное бюджетное общеобразовательное учреждение \"Прогимназия №90 г. Челябинска\"","Центральный",4,4,1,1,2,0,0,3,3,2,4,6,1,0,6,2,31]
["Сайтхужина","Муниципальное бюджетное общеобразовательное учреждение \"Прогимназия №90 г. Челябинска\"","Центральный",4,4,1,1,3,5,1,0,2,1,3,4,1,1,5,3,31]
["Кривогина","Муниципальное бюджетное общеобразовательное учреждение \"Средняя общеобразовательная школа №107 г. Челябинска\"","Тракторозаводский",4,4,0,2,3,0,1,3,2,3,0,7,1,0,6,3,31]
["Калугина","Муниципальное автономное общеобразовательное учреждение \"Средняя общеобразовательная школа №154 г.Челябинска\"","Калининский",4,4,0,0,2,0,0,3,1,2,6,6,1,0,6,3,30]
["Муртазина","Муниципальное бюджетное общеобразовательное учреждение \"Средняя общеобразовательная школа № 150 г. Челябинска\"","Калининский",4,4,0,2,4,0,0,0,2,3,5,6,0,0,6,2,30]
["Окороков","Муниципальное автономное общеобразовательное учреждение \"Средняя общеобразовательная школа с углубленным изучением отдельных предметов №104 г. Челябинска\"","Калининский",4,4,0,1,3,0,1,3,0,1,4,7,1,0,5,4,30]
["Поварницина","Муниципальное автономное общеобразовательное учреждение \"Образовательный Центр № 1 \"","Калининский",4,4,0,2,3,0,2,3,0,3,5,7,0,0,5,0,30]
["Султангареева","Муниципальное автономное общеобразовательное учреждение «Средняя общеобразовательная школа № 21 г. Челябинска»","Калининский",4,4,0,1,4,0,3,5,1,2,2,7,0,0,5,0,30]
["Хоршева","Муниципальное автономное общеобразовательное учреждение \"Средняя общеобразовательная школа №78 г. Челябинска\"","Калининский",4,4,0,0,3,0,1,3,0,3,6,6,1,0,6,1,30]
["Щеглова","Муниципальное автономное общеобразовательное учреждение \"Средняя общеобразовательная школа №5 г. Челябинска\"","Калининский",4,4,0,0,3,0,4,3,1,2,6,6,0,0,3,2,30]
["Егорова","Муниципальное бюджетное общеобразовательное учреждение \"Средняя общеобразовательная школа № 22 г. Челябинска\" \"Кадетская (казачья) школа\"","Курчатовский",4,4,0,3,3,0,0,3,0,2,5,6,0,0,5,3,30]
["Касимова","Муниципальное автономное общеобразовательное учреждение \"Средняя общеобразовательная школа № 41 г. Челябинска\"","Курчатовский",4,4,0,3,1,0,3,3,1,2,4,7,1,0,5,0,30]
["Палеев","Муниципальное бюджетное общеобразовательное учреждение \"Средняя общеобразовательная школа № 89 г. Челябинска\"","Курчатовский",4,4,0,2,3,0,0,3,2,3,3,7,0,0,6,1,30]
["Сливина","Муниципальное автономное общеобразовательное учреждение \"Академический лицей № 95 г.Челябинска\"","Курчатовский",4,4,1,3,3,0,2,0,1,3,2,7,1,0,5,2,30]
["Дунаев","частное общеобразовательное учреждение \"РЖД лицей № 4\"","Ленинский",1,4,0,2,3,0,1,3,1,3,5,4,1,1,4,2,30]
["Дурдыева","Муниципальное автономное общеобразовательное учреждение \"Средняя общеобразовательная школа №46 имени З.А. Космодемьянской города Челябинска\"","Ленинский",4,4,0,4,3,0,0,3,2,2,0,7,1,0,5,3,30]
["Мангутов","Муниципальное автономное общеобразовательное учреждение \"Лицей №77 г. Челябинска\"","Ленинский",4,4,0,2,2,0,3,3,1,3,3,5,0,0,4,4,30]
["Шкуратов","Муниципальное бюджетное общеобразовательное учреждение \"Средняя общеобразовательная школа № 68 г. Челябинска\" (филиал 2)","Ленинский",4,4,0,3,4,0,1,3,2,2,4,5,0,0,6,0,30]
["Жила","Муниципальное автономное общеобразовательное учреждение \"Средняя общеобразовательная школа № 94 г. Челябинска\"","Металлургический",4,4,0,2,3,0,2,0,3,2,3,5,1,1,5,3,30]
["Карпова","Муниципальное бюджетное общеобразовательное учреждение \"Санаторная школа-интернат для детей, нуждающихся в длительном лечении, №3 г. Челябинска\"","Металлургический",4,4,0,2,4,0,4,3,2,3,0,6,2,0,3,1,30]
["Коновалов","Муниципальное бюджетное общеобразовательное учреждение \"Средняя общеобразовательная школа №92 г. Челябинска\"","Металлургический",4,4,0,1,4,0,2,3,3,2,4,4,0,0,6,1,30]
["Суздорф","Муниципальное автономное общеобразовательное учреждение \"Средняя общеобразовательная школа № 73 г. Челябинска\"","Металлургический",4,4,0,4,4,0,1,3,1,2,1,6,0,0,4,4,30]
["Юсупова","Муниципальное автономное общеобразовательное учреждение \"Средняя общеобразовательная школа № 91 г. Челябинска\"","Металлургический",4,4,0,4,2,0,1,0,2,1,6,6,1,0,5,2,30]
["Джамолова","Муниципальное автономное общеобразовательное учреждение \"Средняя общеобразовательная школа № 145 г. Челябинска\"","Советский",4,4,0,3,1,0,1,0,0,3,5,7,1,0,6,3,30]
["Саванович","Муниципальное автономное общеобразовательное учреждение \"Лицей № 142 г.Челябинска\"","Советский",4,4,0,1,3,0,2,0,2,2,5,7,1,0,5,2,30]
["Тарасов","Муниципальное автономное общеобразовательное учреждение \"Гимназия №80 г. Челябинска\"","Советский",4,4,0,4,4,0,4,0,1,1,3,5,1,0,5,2,30]
["Березянский","Муниципальное бюджетное общеобразовательное учреждение \"Прогимназия №90 г. Челябинска\"","Центральный",4,4,0,4,4,0,2,3,0,2,0,5,1,0,6,3,30]
["Власова","Муниципальное бюджетное общеобразовательное учреждение \"Лицей № 11 г. Челябинска\"","Центральный",4,4,0,3,4,0,3,3,2,2,2,4,1,0,5,1,30]
["Жеребцов","Муниципальное бюджетное общеобразовательное учреждение \"Лицей № 11 г. Челябинска\"","Центральный",4,4,1,0,4,0,3,3,1,3,0,5,0,1,6,3,30]
["Измайлов","Муниципальное бюджетное общеобразовательное учреждение \"Лицей № 11 г. Челябинска\"","Центральный",4,4,0,3,3,0,0,3,2,1,4,6,1,0,4,3,30]
["Романов","Муниципальное бюджетное общеобразовательное учреждение \"Лицей № 11 г. Челябинска\"","Центральный",4,4,0,4,4,0,3,0,1,3,0,6,0,0,5,4,30]
["Саяпин","Муниципальное автономное общеобразовательное учреждение \"Средняя общеобразовательная школа №147 г. Челябинска\"","Центральный",4,4,0,4,1,0,4,0,1,3,1,5,1,0,6,4,30]
["Усольцева","Муниципальное бюджетное общеобразовательное учреждение \"Лицей № 11 г. Челябинска\"","Центральный",4,4,0,1,3,0,2,3,3,1,3,5,1,1,5,2,30]
["Шестериков","Муниципальное бюджетное общеобразовательное учреждение \"Прогимназия №90 г. Челябинска\"","Центральный",4,4,0,1,2,0,2,3,1,2,3,7,1,0,5,3,30]
["Ахманаев","Муниципальное бюджетное общеобразовательное учреждение \"Средняя общеобразовательная школа №39 г. Челябинска\"","Тракторозаводский",4,4,0,3,3,0,4,0,0,2,3,5,1,0,5,4,30]
["Хлыбов","Муниципальное Бюджетное Общеобразовательное Учреждение \"Лицей № 120 г. Челябинска\"","Тракторозаводский",4,4,0,2,4,0,4,3,0,2,3,6,0,0,5,1,30]
["Костенко","Муниципальное автономное общеобразовательное учреждение \"Средняя общеобразовательная школа №36 г. Челябинска\"","Калининский",4,4,0,2,4,0,1,3,2,1,6,5,0,0,4,1,29]
["Радышевская","Муниципальное бюджетное общеобразовательное учреждение \"Средняя общеобразовательная школа №54 г. Челябинска\"","Калининский",4,4,0,3,2,0,0,3,1,1,5,6,0,0,5,3,29]
["Рудницкая","Муниципальное автономное общеобразовательное учреждение \"Средняя общеобразовательная школа с углубленным изучением отдельных предметов №104 г. Челябинска\"","Калининский",4,4,0,2,3,0,1,3,2,1,0,6,0,0,6,5,29]
["Саломатов","Муниципальное автономное общеобразовательное учреждение \"Образовательный Центр № 1 \"","Калининский",4,4,0,1,3,0,2,5,2,3,0,5,0,0,3,5,29]
["Шигапова","Муниципальное автономное общеобразовательное учреждение \"Образовательный Центр № 1 \"","Калининский",4,4,0,2,4,0,3,0,2,3,0,7,1,0,3,4,29]
["Баранова","Муниципальное автономное общеобразовательное учреждение \"Образовательный центр № 5 г. Челябинска\"","Курчатовский",4,4,0,3,0,0,4,3,0,3,0,7,0,0,6,3,29]
["Биксинтеева","Муниципальное автономное общеобразовательное учреждение \"Средняя общеобразовательная школа № 152 г. Челябинска\"","Курчатовский",4,4,1,1,2,0,2,0,2,3,3,7,1,0,5,2,29]
["Жаксыбаев","Муниципальное бюджетное общеобразовательное учреждение \"Средняя общеобразовательная школа № 89 г. Челябинска\"","Курчатовский",4,4,0,4,2,0,3,3,0,3,0,6,0,0,6,2,29]
["Лихачева","Муниципальное автономное общеобразовательное учреждение \"Гимназия № 26 г. Челябинска\"","Курчатовский",4,4,0,0,4,0,4,0,1,2,3,5,1,0,6,3,29]
["Орлова","Муниципальное бюджетное общеобразовательное учреждение \"Средняя общеобразовательная школа №12 г. Челябинска\"","Курчатовский",4,4,0,3,4,0,4,3,2,3,0,5,0,0,5,0,29]
["Подпорин","Муниципальное автономное общеобразовательное учреждение \"Средняя общеобразовательная школа № 41 г. Челябинска\"","Курчатовский",4,4,0,0,3,0,4,3,3,2,3,4,1,0,5,1,29]
["Разживина","Муниципальное автономное общеобразовательное учреждение \"Гимназия №93 г. Челябинска имени Александра Фомича Гелича\"","Курчатовский",4,4,0,1,4,0,3,3,1,1,3,7,0,0,2,4,29]
["Грузинская","Муниципальное автономное общеобразовательное учреждение \"Средняя общеобразовательная школа №46 имени З.А. Космодемьянской города Челябинска\"","Ленинский",4,4,1,1,3,0,2,3,3,1,5,7,1,0,0,2,{"$f":"SUM(F323:S323)","v":29}]
["Пышкин","Муниципальное автономное общеобразовательное учреждение \"Лицей № 37 г. Челябинска\"","Ленинский",4,4,0,1,4,0,3,3,0,2,3,5,0,0,5,3,29]
["Черников","Муниципальное автономное общеобразовательное учреждение \"Гимназия №76 г. Челябинска\"","Ленинский",4,4,0,1,4,0,1,3,1,2,3,5,1,0,6,2,29]
["Сорокин","Муниципальное автономное общеобразовательное учреждение \"Средняя общеобразовательная школа № 91 г. Челябинска\"","Металлургический",4,4,1,0,4,0,1,3,0,2,4,5,1,0,6,2,29]
["Буржинская","Муниципальное автономное общеобразовательное учреждение \"Гимназия №80 г. Челябинска\"","Советский",4,4,0,4,4,0,1,0,2,2,3,6,1,0,4,2,29]
["Гребенщикова","Муниципальное бюджетное общеобразовательное учреждение \"Средняя общеобразовательная школа № 17 им. Голендухина А.Н. г.Челябинска\"","Советский",4,4,0,0,3,0,2,3,2,3,3,6,1,0,4,2,29]
["Михайлов","Муниципальное автономное общеобразовательное учреждение \"Средняя общеобразовательная школа № 43 г. Челябинска\"","Советский",4,4,0,3,3,0,4,0,1,2,0,7,0,0,5,4,29]
["Пермякова","Муниципальное бюджетное общеобразовательное учреждение \"Средняя общеобразовательная школа № 17 им. Голендухина А.Н. г.Челябинска\"","Советский",4,4,0,3,4,0,3,0,3,1,3,6,0,0,4,2,29]
["Коваль","Муниципальное автономное общеобразовательное учреждение \"Средняя общеобразовательная школа №138 г. Челябинска\"","Центральный",4,4,0,4,2,0,0,3,0,3,4,4,0,0,5,4,29]
["Комзалова","Муниципальное автономное общеобразовательное учреждение «Многопрофильный лицей № 148 г. Челябинска»","Центральный",4,4,1,0,3,0,1,3,3,1,5,5,0,0,5,2,29]
["Логанов","Муниципальное бюджетное общеобразовательное учреждение \"Прогимназия №90 г. Челябинска\"","Центральный",4,4,0,1,4,0,1,0,1,2,3,7,1,0,6,3,29]
["Татаринов","Муниципальное бюджетное общеобразовательное учреждение \"Прогимназия №90 г. Челябинска\"","Центральный",4,4,1,3,4,0,4,3,2,2,0,6,0,0,2,2,29]
["Угаев","Муниципальное автономное общеобразовательное учреждение \"Лицей № 67 г. Челябинска\"","Центральный",3,4,0,2,3,0,0,3,0,3,3,5,1,0,5,4,29]
["Коротовских","Муниципальное автономное общеобразовательное учреждение \"Гимназия № 23 г. Челябинска им. В. Д. Луценко\"","Калининский",4,4,0,3,3,0,0,3,2,3,3,5,1,0,5,0,28]
["Халезин","Муниципальное автономное общеобразовательное учреждение \"Средняя общеобразовательная школа №5 г. Челябинска\"","Калининский",4,4,0,0,1,0,0,3,1,3,4,7,0,0,6,3,28]
["Хмарова","Муниципальное бюджетное общеобразовательное учреждение \"Средняя общеобразовательная школа №151 г. Челябинска\"","Калининский",4,4,0,1,3,0,3,0,1,1,4,6,1,0,6,2,28]
["Павлова","Муниципальное бюджетное общеобразовательное учреждение \"Средняя общеобразовательная школа № 89 г. Челябинска\"","Курчатовский",4,4,0,2,4,0,4,3,2,1,3,7,0,0,0,2,28]
["Черемных","Муниципальное автономное общеобразовательное учреждение \"Средняя общеобразовательная школа № 152 г. Челябинска\"","Курчатовский",4,4,0,0,3,0,4,3,1,2,2,7,1,0,4,1,28]
["Штемберг","Муниципальное бюджетное общеобразовательное учреждение \"Средняя общеобразовательная школа №32 г. Челябинска\"","Ленинский",4,4,0,3,3,0,3,3,1,1,2,5,1,0,4,2,28]
["Ефремов","Муниципальное автономное общеобразовательное учреждение \"Гимназия №80 г. Челябинска\"","Советский",4,4,1,1,4,0,4,0,0,3,3,5,1,0,6,0,28]
["Витмайер","Муниципальное автономное общеобразовательное учреждение \"Средняя общеобразовательная школа №155 г. Челябинска\"","Тракторозаводский",4,4,0,4,3,0,3,5,1,3,2,0,1,0,5,1,28]
["Нелипович","Муниципальное бюджетное общеобразовательное учреждение \"Средняя общеобразовательная школа №39 г. Челябинска\"","Тракторозаводский",4,4,1,3,3,0,4,3,1,1,3,7,1,0,0,1,28]
["Едришова","Муниципальное бюджетное общеобразовательное учреждение \"Прогимназия №90 г. Челябинска\"","Центральный",4,4,0,4,1,0,0,3,2,2,3,5,1,0,5,2,28]
["Колчина","Муниципальное бюджетное общеобразовательное учреждение \"Гимназия №1 г. Челябинска\"","Центральный",4,4,0,2,3,0,1,3,2,3,0,5,0,0,6,3,28]
["Орлова","Муниципальное бюджетное общеобразовательное учреждение \"Лицей № 11 г. Челябинска\"","Центральный",4,4,0,0,3,0,3,0,3,2,5,5,0,0,5,2,28]
["Рыжкова","Муниципальное бюджетное общеобразовательное учреждение \"Прогимназия №90 г. Челябинска\"","Центральный",4,4,0,3,3,5,2,0,3,2,4,0,0,0,4,2,28]
["Сумина","Муниципальное бюджетное общеобразовательное учреждение \"Гимназия №1 г. Челябинска\"","Центральный",4,4,1,2,0,0,0,3,1,1,5,7,1,0,4,3,28]
["Храмцова","Муниципальное автономное общеобразовательное учреждение «Средняя общеобразовательная школа № 30 г. Челябинска им. Н.А.Худякова»","Центральный",4,4,0,3,3,0,1,0,2,1,3,5,1,0,6,3,28]
["Галеева","Муниципальное автономное общеобразовательное учреждение \"Средняя общеобразовательная школа №59 г.Челябинска\"","Тракторозаводский",4,4,0,1,4,0,1,5,0,1,2,5,1,0,6,1,27]
["Брылов","Муниципальное автономное общеобразовательное учреждение «Образовательный центр «НЬЮТОН» г. Челябинска»","Калининский",4,4,0,2,4,0,1,0,0,1,3,6,1,0,5,4,27]
["Гаев","Муниципальное автономное общеобразовательное учреждение \"Образовательный Центр № 1 \"","Калининский",4,4,1,3,3,0,0,0,1,2,6,6,0,1,4,0,27]
["Дроздова","Муниципальное автономное общеобразовательное учреждение \"Средняя общеобразовательная школа с углубленным изучением отдельных предметов №104 г. Челябинска\"","Калининский",4,4,0,3,3,0,1,3,1,3,4,4,0,0,5,0,27]
["Иванов","Муниципальное автономное общеобразовательное учреждение «Образовательный центр «НЬЮТОН» г. Челябинска»","Калининский",4,4,0,3,3,0,4,3,0,1,2,6,0,0,3,2,27]
["Школьникова","Муниципальное автономное общеобразовательное учреждение \"Гимназия № 23 г. Челябинска им. В. Д. Луценко\"","Калининский",4,4,0,0,4,0,3,3,1,1,0,7,0,0,6,2,27]
["Вишнякова","Муниципальное бюджетное общеобразовательное учреждение \"Средняя общеобразовательная школа № 99 г. Челябинска\"","Ленинский",4,4,0,1,2,0,0,3,2,3,3,5,1,0,6,1,27]
["Зотова","частное общеобразовательное учреждение \"РЖД лицей № 4\"","Ленинский",1,4,1,0,3,0,1,3,1,1,3,6,2,0,6,0,27]
["Исаева","Муниципальное автономное общеобразовательное учреждение \"Лицей № 37 г. Челябинска\"","Ленинский",4,4,0,1,2,0,2,0,3,3,4,7,0,0,3,2,27]
["Косенюк","Муниципальное автономное общеобразовательное учреждение \"Гимназия №100 г. Челябинска\"","Ленинский",4,4,0,0,1,0,3,3,0,1,5,7,0,0,6,1,27]
["Назимова","Муниципальное бюджетное общеобразовательное учреждение \"Средняя общеобразовательная школа № 68 г. Челябинска\" (филиал 2)","Ленинский",4,4,0,3,3,0,1,5,0,1,0,7,0,0,6,1,27]
["Самашева","Муниципальное бюджетное общеобразовательное учреждение \"Средняя общеобразовательная школа № 55 города Челябинска\"","Ленинский",4,4,0,3,3,0,2,0,3,2,3,5,1,0,5,0,27]
["Сирачева","Муниципальное бюджетное общеобразовательное учреждение \"Средняя общеобразовательная школа № 55 города Челябинска\"","Ленинский",4,4,0,4,1,0,2,0,2,1,3,7,1,0,6,0,27]
["Худоносова","Муниципальное бюджетное общеобразовательное учреждение \"Средняя общеобразовательная школа № 68 г. Челябинска\" (филиал 2)","Ленинский",4,4,0,1,3,0,3,3,0,2,1,7,0,0,4,3,27]
["Ермаков","Муниципальное автономное общеобразовательное учреждение \"Средняя общеобразовательная школа № 73 г. Челябинска\"","Металлургический",4,4,0,0,4,0,0,3,1,2,4,4,0,0,6,3,27]
["Лобода","Муниципальное автономное общеобразовательное учреждение \"Средняя общеобразовательная школа № 91 г. Челябинска\"","Металлургический",4,4,0,3,0,0,0,0,2,2,5,7,1,0,6,1,27]
["Мантарджиева","Муниципальное автономное общеобразовательное учреждение \"Средняя общеобразовательная школа № 94 г. Челябинска\"","Металлургический",4,4,0,0,1,0,3,0,0,2,6,7,1,0,4,3,27]
["Шульц","Муниципальное автономное общеобразовательное учреждение \"Гимназия № 96 г. Челябинска\"","Металлургический",4,4,0,2,4,0,2,3,1,3,3,4,0,0,4,1,27]
["Блошкина","Муниципальное автономное общеобразовательное учреждение \"Гимназия №80 г. Челябинска\"","Советский",4,4,0,1,4,0,4,3,2,1,3,6,0,1,2,0,27]
["Кадун","Муниципальное бюджетное общеобразовательное учреждение \"Средняя общеобразовательная школа № 144 г.Челябинска\"","Советский",4,4,0,3,4,0,4,0,0,0,3,6,1,0,2,4,27]
["Анчугова","Муниципальное автономное общеобразовательное учреждение \"Средняя общеобразовательная школа № 112 г. Челябинска\"","Тракторозаводский",4,4,0,3,3,0,0,3,1,2,0,7,0,0,6,2,27]
["Горюнова","Муниципальное автономное общеобразовательное учреждение \"Средняя общеобразовательная школа №59 г.Челябинска\"","Тракторозаводский",4,4,0,3,4,0,1,3,0,0,3,5,0,0,6,2,27]
["Бабкин","Муниципальное автономное общеобразовательное учреждение \"Средняя общеобразовательная школа № 8 г. Челябинска\"","Центральный",4,4,0,1,3,0,3,0,0,2,5,6,1,0,5,1,27]
["Габбасов","Муниципальное бюджетное общеобразовательное учреждение \"Лицей № 11 г. Челябинска\"","Центральный",4,4,0,3,4,0,0,3,2,1,0,5,0,0,5,4,27]
["Максютова","Муниципальное бюджетное общеобразовательное учреждение \"Гимназия №1 г. Челябинска\"","Центральный",4,4,0,1,1,0,3,0,3,1,4,4,2,0,5,3,27]
["Мутовкин","Муниципальное бюджетное общеобразовательное учреждение \"Лицей № 11 г. Челябинска\"","Центральный",4,4,0,0,3,0,1,3,3,3,3,5,0,0,2,4,27]
["Пильникова","Муниципальное автономное общеобразовательное учреждение \"Средняя общеобразовательная школа №138 г. Челябинска\"","Центральный",4,4,0,0,1,4,0,3,0,3,3,4,0,0,5,4,27]
["Челышева","Муниципальное автономное общеобразовательное учреждение «Многопрофильный лицей № 148 г. Челябинска»","Центральный",4,4,0,1,3,0,2,3,1,2,0,5,1,0,5,4,27]
["Перелыгин","Муниципальное бюджетное общеобразовательное учреждение \"Образовательный центр № 3 имени В.К. Белоусова\"","Тракторозаводский",4,4,0,4,2,0,4,3,0,1,3,4,0,0,5,1,27]
["Семенов","Муниципальное бюджетное общеобразовательное учреждение \"Средняя общеобразовательная школа № 81 г. Челябинска имени Героя Советского Союза Мусы Джалиля\"","Тракторозаводский",4,4,0,1,4,0,0,0,1,3,3,7,2,0,6,0,27]
["Заболоцкая","Муниципальное автономное общеобразовательное учреждение «Образовательный центр «НЬЮТОН» г. Челябинска»","Калининский",4,4,0,0,3,0,1,3,1,2,6,6,1,0,3,0,26]
["Кердикошвили","Муниципальное автономное общеобразовательное учреждение \"Средняя общеобразовательная школа №154 г.Челябинска\"","Калининский",4,4,0,0,3,0,1,0,2,1,6,7,0,0,5,1,26]
["Маркелов","Муниципальное автономное общеобразовательное учреждение \"Средняя общеобразовательная школа № 25 г. Челябинска\"","Калининский",4,4,1,2,4,0,3,3,2,2,3,6,0,0,0,0,26]
["Петров","Муниципальное автономное общеобразовательное учреждение «Средняя общеобразовательная школа № 21 г. Челябинска»","Калининский",4,4,0,2,3,0,0,0,1,1,4,7,1,0,5,2,26]
["Плаксина","Частное общеобразовательное учреждение «Челябинская православная гимназия во имя Святого Праведного Симеона Верхотурского Чудотворца»","Калининский",4,4,1,0,3,0,0,0,2,3,5,7,0,0,5,0,26]
["Суслова","Муниципальное автономное общеобразовательное учреждение \"Средняя общеобразовательная школа №154 г.Челябинска\"","Калининский",4,4,1,0,3,0,0,3,3,1,4,6,0,0,3,2,26]
["Боброва","Муниципальное автономное общеобразовательное учреждение \"Гимназия №93 г. Челябинска имени Александра Фомича Гелича\"","Курчатовский",4,4,1,1,2,0,2,3,0,1,5,5,0,0,3,3,{"$f":"SUM(F387:S387)","v":26}]
["Юлмурзина","Муниципальное бюджетное общеобразовательное учреждение \"Средняя общеобразовательная школа № 89 г. Челябинска\"","Курчатовский",4,4,0,2,2,0,0,3,2,3,0,5,0,0,6,3,26]
["Сергеева","Муниципальное бюджетное общеобразовательное учреждение «Средняя общеобразовательная школа № 146 г. Челябинска»","Ленинский",4,4,0,0,1,0,3,0,2,0,4,7,1,0,5,3,26]
["Чурсинова","Муниципальное автономное общеобразовательное учреждение \"Средняя общеобразовательная школа №130 г. Челябинска\"","Ленинский",4,4,0,0,3,0,3,3,2,1,3,5,1,0,3,2,26]
["Сельницина","Муниципальное автономное общеобразовательное учреждение \"Лицей № 82 г. Челябинска\"","Металлургический",4,4,0,2,2,0,0,3,0,2,4,6,0,0,6,1,26]
["Бусова","Муниципальное бюджетное общеобразовательное учреждение \"Средняя общеобразовательная школа № 121 г. Челябинска\"","Советский",4,4,0,4,0,0,3,3,0,2,5,6,1,0,0,2,26]
["Мамедова","Муниципальное автономное общеобразовательное учреждение \"Средняя общеобразовательная школа № 145 г. Челябинска\"","Советский",4,4,1,1,2,0,2,0,0,2,3,6,1,0,5,3,26]
["Шокавин","Муниципальное автономное общеобразовательное учреждение \"Средняя общеобразовательная школа № 145 г. Челябинска\"","Советский",4,4,0,4,2,0,2,0,0,2,1,7,2,0,6,0,26]
["Ворончихин","Муниципальное бюджетное общеобразовательное учреждение \"Образовательный центр № 3 имени В.К. Белоусова\"","Тракторозаводский",4,4,0,4,4,0,1,3,1,1,3,3,0,0,5,1,26]
["Луньков","Муниципальное бюджетное общеобразовательное учреждение \"Средняя общеобразовательная школа №39 г. Челябинска\"","Тракторозаводский",4,4,0,4,3,0,2,0,1,2,1,4,1,0,6,2,26]
["Любавина","Муниципальное бюджетное общеобразовательное учреждение \"Гимназия №48 им. Н. Островского г. Челябинска\"","Тракторозаводский",4,4,0,0,3,0,1,3,1,3,1,6,0,0,6,2,26]
["Мальнева","Муниципальное бюджетное общеобразовательное учреждение \"Средняя общеобразовательная школа №107 г. Челябинска\"","Тракторозаводский",4,4,0,3,3,0,1,0,2,1,3,6,0,0,6,1,26]
["Саидов","Муниципальное автономное общеобразовательное учреждение \"Средняя общеобразовательная школа №155 г. Челябинска\"","Тракторозаводский",4,4,0,3,4,0,0,3,2,2,2,5,1,0,2,2,26]
["Топоркова","Муниципальное бюджетное общеобразовательное учреждение \"Средняя общеобразовательная школа №86 г. Челябинска\"","Тракторозаводский",4,4,0,0,1,0,0,3,3,2,3,7,1,0,4,2,26]
["Проскурин","Муниципальное бюджетное общеобразовательное учреждение \"Прогимназия №90 г. Челябинска\"","Центральный",4,4,1,0,4,0,1,3,2,1,0,7,0,0,6,1,26]
["Савалов","Муниципальное бюджетное общеобразовательное учреждение \"Лицей № 11 г. Челябинска\"","Центральный",4,4,0,4,4,0,2,0,2,1,4,6,1,0,1,1,26]
["Черухин","Муниципальное автономное общеобразовательное учреждение \"Средняя общеобразовательная школа №138 г. Челябинска\"","Центральный",4,4,0,0,4,0,2,3,1,3,0,4,1,0,4,4,26]
["Исаева","Муниципальное бюджетное общеобразовательное учреждение \"Средняя общеобразовательная школа №86 г. Челябинска\"","Тракторозаводский",4,4,0,3,3,0,1,2,2,1,3,4,0,0,5,2,26]
["Фомин","Муниципальное Бюджетное Общеобразовательное Учреждение \"Лицей № 120 г. Челябинска\"","Тракторозаводский",4,4,1,0,4,0,0,0,2,1,4,7,0,0,6,1,26]
["Бердникова","Муниципальное автономное общеобразовательное учреждение «Средняя общеобразовательная школа № 21 г. Челябинска»","Калининский",4,4,0,3,0,0,1,0,0,2,4,6,0,2,5,2,25]
["Карабаева","Муниципальное автономное общеобразовательное учреждение \"Образовательный Центр № 1 \"","Калининский",4,4,0,4,4,0,0,0,2,1,2,7,0,0,5,0,25]
["Нестерова","Муниципальное автономное общеобразовательное учреждение «Образовательный центр «НЬЮТОН» г. Челябинска»","Калининский",4,4,0,2,1,0,0,3,1,3,0,5,2,0,6,2,25]
["Степаненко","Муниципальное автономное общеобразовательное учреждение \"Образовательный центр № 7 г. Челябинска\"","Калининский",4,4,0,2,4,0,0,3,1,1,3,6,0,0,5,0,25]
["Меркушев","Муниципальное автономное общеобразовательное учреждение \"Средняя общеобразовательная школа № 41 г. Челябинска\"","Курчатовский",4,4,1,1,3,0,0,3,1,3,1,3,0,0,5,4,25]
["Хакимьянова","Муниципальное автономное общеобразовательное учреждение \"Гимназия №93 г. Челябинска имени Александра Фомича Гелича\"","Курчатовский",4,4,1,4,3,0,1,3,1,2,5,3,0,0,0,2,25]
["Горбик","Муниципальное автономное общеобразовательное учреждение \"Гимназия №76 г. Челябинска\"","Ленинский",4,4,1,0,3,0,0,3,0,2,0,7,1,0,5,3,25]
["Клаузер","Муниципальное бюджетное общеобразовательное учреждение \"Средняя общеобразовательная школа №75 г. Челябинска\"","Ленинский",4,4,0,2,4,0,1,3,0,2,0,5,0,0,6,2,25]
["Оразалина","Муниципальное бюджетное общеобразовательное учреждение \"Средняя общеобразовательная школа №32 г. Челябинска\"","Ленинский",4,4,0,1,3,0,1,3,2,1,0,5,1,0,5,3,25]
["Рязанцев","Муниципальное бюджетное общеобразовательное учреждение \"Средняя общеобразовательная школа № 68 г. Челябинска\" (филиал 2)","Ленинский",4,4,0,2,3,0,1,3,0,2,3,6,0,0,3,2,25]
["Штырков","Муниципальное автономное общеобразовательное учреждение \"Средняя общеобразовательная школа №46 имени З.А. Космодемьянской города Челябинска\"","Ленинский",4,4,0,2,3,0,1,0,0,3,4,7,0,0,5,0,25]
["Кузнецов","Муниципальное автономное общеобразовательное учреждение \"Средняя общеобразовательная школа № 145 г. Челябинска\"","Советский",4,4,1,3,1,0,3,0,0,3,3,6,0,0,2,3,25]
["Петухова","Муниципальное автономное общеобразовательное учреждение \"Гимназия №80 г. Челябинска\"","Советский",4,4,1,0,2,0,1,3,1,2,5,5,0,0,3,2,25]
["Гончарова","Муниципальное бюджетное общеобразовательное учреждение \"Прогимназия №90 г. Челябинска\"","Центральный",4,4,0,2,2,0,0,3,2,3,0,6,1,0,6,0,25]
["Ратникова","Муниципальное Бюджетное Общеобразовательное Учреждение \"Лицей № 120 г. Челябинска\"","Тракторозаводский",4,4,0,3,4,0,2,0,3,1,0,5,0,0,5,2,25]
["Балабанов","Муниципальное бюджетное общеобразовательное учреждение \"Образовательный центр № 3 имени В.К. Белоусова\"","Тракторозаводский",4,4,0,2,3,0,3,3,2,2,0,4,0,0,5,0,24]
["Васильева","Муниципальное автономное общеобразовательное учреждение \"Средняя общеобразовательная школа №154 г.Челябинска\"","Калининский",4,4,0,3,1,0,0,3,0,1,3,6,0,0,5,2,24]
["Елисеева","Муниципальное автономное общеобразовательное учреждение \"Средняя общеобразовательная школа №154 г.Челябинска\"","Калининский",4,4,1,1,2,0,0,0,2,3,4,4,2,0,2,3,24]
["Жаламанова","Муниципальное автономное общеобразовательное учреждение «Образовательный центр «НЬЮТОН» г. Челябинска»","Калининский",4,4,0,0,4,0,0,3,1,1,6,7,0,0,0,2,24]
["Киринова","Муниципальное бюджетное общеобразовательное учреждение \"Средняя общеобразовательная школа № 150 г. Челябинска\"","Калининский",4,4,0,0,3,0,4,0,1,1,3,5,0,0,5,2,24]
["Загнойко","Муниципальное автономное общеобразовательное учреждение \"Средняя общеобразовательная школа № 13 г. Челябинска\"","Курчатовский",4,4,0,0,3,0,1,3,1,3,5,0,0,0,5,3,24]
["Овчинников","Муниципальное бюджетное общеобразовательное учреждение \"Средняя общеобразовательная школа №12 г. Челябинска\"","Курчатовский",4,4,0,0,4,0,3,0,1,1,3,5,1,0,5,1,24]
["Вавилова","Муниципальное бюджетное общеобразовательное учреждение \"Средняя общеобразовательная школа № 68 г. Челябинска\" (филиал 2)","Ленинский",4,4,1,0,4,0,0,5,3,2,0,4,0,0,4,1,24]
["Гапоян","Муниципальное бюджетное общеобразовательное учреждение \"Средняя общеобразовательная школа №75 г. Челябинска\"","Ленинский",4,4,0,0,0,0,0,0,2,2,2,7,1,0,6,4,24]
["Косинцева","Муниципальное бюджетное общеобразовательное учреждение \"Средняя общеобразовательная школа № 99 г. Челябинска\"","Ленинский",4,4,0,0,4,0,3,3,0,2,5,7,0,0,0,0,24]
["Френкель","Муниципальное автономное общеобразовательное учреждение «Средняя общеобразовательная школа № 108 г.Челябинска имени Героя Российской Федерации А.В.Яковлева»","Ленинский",4,4,0,2,0,0,0,3,0,0,3,7,0,0,6,3,24]
["Шайгасимов","Муниципальное бюджетное общеобразовательное учреждение \"Средняя общеобразовательная школа № 68 г. Челябинска\" (филиал 2)","Ленинский",4,4,0,0,4,0,0,3,0,2,4,4,1,0,5,1,24]
["Ямщикова","Муниципальное бюджетное общеобразовательное учреждение \"Средняя общеобразовательная школа № 55 города Челябинска\"","Ленинский",4,4,1,3,3,0,2,0,1,1,4,5,0,0,4,0,24]
["Лайко","Муниципальное бюджетное общеобразовательное учреждение \"Средняя общеобразовательная школа № 58 г. Челябинска\"","Советский",8,4,0,0,2,0,3,0,1,2,3,6,1,0,5,1,24]
["Гнебедина","Муниципальное бюджетное общеобразовательное учреждение \"Средняя общеобразовательная школа №107 г. Челябинска\"","Тракторозаводский",4,4,1,3,3,0,0,0,0,1,3,6,0,0,5,2,24]
["Первушина","Муниципальное бюджетное общеобразовательное учреждение \"Лицей № 11 г. Челябинска\"","Центральный",4,4,1,1,1,0,4,0,1,3,3,6,0,0,3,1,24]
["Шепталин","Муниципальное бюджетное общеобразовательное учреждение \"Гимназия №1 г. Челябинска\"","Центральный",4,4,0,0,4,0,3,0,2,3,0,6,1,0,3,2,24]
["Юдахина","Муниципальное бюджетное общеобразовательное учреждение \"Прогимназия №90 г. Челябинска\"","Центральный",4,4,0,0,4,0,0,3,2,3,0,5,0,0,5,2,24]
["Чистова","Муниципальное бюджетное общеобразовательное учреждение \"Средняя общеобразовательная школа №107 г. Челябинска\"","Тракторозаводский",4,4,0,0,4,0,2,3,0,1,3,4,0,0,6,0,23]
["Валеева","Муниципальное автономное общеобразовательное учреждение \"Гимназия № 23 г. Челябинска им. В. Д. Луценко\"","Калининский",4,4,0,1,3,0,2,0,0,2,5,5,0,0,5,0,23]
["Муравьёв","Муниципальное автономное общеобразовательное учреждение \"Средняя общеобразовательная школа №154 г.Челябинска\"","Калининский",4,4,0,2,3,0,2,3,1,1,0,6,1,0,4,0,23]
["Силина","Муниципальное автономное общеобразовательное учреждение \"Образовательный Центр № 1 \"","Калининский",4,4,0,2,2,0,0,3,0,2,3,6,0,0,5,0,23]
["Иванова","Муниципальное бюджетное общеобразовательное учреждение \"Средняя общеобразовательная школа № 22 г. Челябинска\" \"Кадетская (казачья) школа\"","Курчатовский",4,4,0,0,2,0,4,0,0,1,4,5,0,0,5,2,23]
["Кондратьев","Муниципальное автономное общеобразовательное учреждение \"Академический лицей № 95 г.Челябинска\"","Курчатовский",4,4,1,0,2,0,0,3,1,2,0,5,0,0,6,3,23]
["Сачкова","Муниципальное бюджетное общеобразовательное учреждение \"Средняя общеобразовательная школа № 55 города Челябинска\"","Ленинский",4,4,0,0,2,0,0,3,2,1,2,4,1,0,6,2,23]
["Слинько","Муниципальное бюджетное общеобразовательное учреждение \"Средняя общеобразовательная школа № 68 г. Челябинска\" (филиал 2)","Ленинский",4,4,1,1,3,0,0,3,2,2,0,4,0,0,5,2,23]
["Гаращенко","Муниципальное автономное общеобразовательное учреждение \"Средняя общеобразовательная школа № 145 г. Челябинска\"","Советский",4,4,0,1,1,0,0,3,1,0,6,5,1,0,5,0,23]
["Селиванов","Муниципальное автономное общеобразовательное учреждение \"Средняя общеобразовательная школа № 98 г. Челябинска\"","Советский",4,4,0,2,1,0,2,3,0,2,3,6,0,0,4,0,23]
["Барышева","Муниципальное бюджетное общеобразовательное учреждение \"Средняя общеобразовательная школа №86 г. Челябинска\"","Тракторозаводский",4,4,1,0,4,0,0,5,1,1,2,4,0,0,4,1,23]
["Кондакова","Муниципальное автономное общеобразовательное учреждение «Средняя общеобразовательная школа № 30 г. Челябинска им. Н.А.Худякова»","Центральный",4,4,0,0,3,0,0,0,1,2,4,6,0,0,5,2,23]
["Гладышев","Муниципальное бюджетное общеобразовательное учреждение \"Образовательный центр № 3 имени В.К. Белоусова\"","Тракторозаводский",4,4,1,1,1,0,0,3,2,1,3,5,0,0,5,1,{"$f":"SUM(F451:S451)","v":23}]
["Плотников","Муниципальное бюджетное общеобразовательное учреждение \"Образовательный центр № 3 имени В.К. Белоусова\"","Тракторозаводский",4,4,0,4,3,0,3,0,1,1,0,5,0,0,6,0,23]
["Сенина","Муниципальное автономное общеобразовательное учреждение \"Средняя общеобразовательная школа № 112 г. Челябинска\"","Тракторозаводский",4,4,0,0,2,0,0,3,1,3,3,7,0,0,3,1,23]
["Бабикова","Муниципальное бюджетное общеобразовательное учреждение \"Средняя общеобразовательная школа №75 г. Челябинска\"","Ленинский",4,4,0,0,3,3.5,1,3,1,1,0,7,0,0,3,0,22.5]
["Муганцева","Муниципальное автономное общеобразовательное учреждение \"Средняя общеобразовательная школа №5 г. Челябинска\"","Калининский",4,4,0,1,2,0,2,3,2,2,0,7,1,0,0,2,22]
["Нестеров","Муниципальное автономное общеобразовательное учреждение «Образовательный центр «НЬЮТОН» г. Челябинска»","Калининский",4,4,0,0,2,0,1,0,0,2,5,5,0,0,5,2,22]
["Аболкасымова","Муниципальное автономное общеобразовательное учреждение \"Средняя общеобразовательная школа № 13 г. Челябинска\"","Курчатовский",4,4,1,1,4,0,0,0,1,0,4,4,0,0,4,3,22]
["Базалийский","Муниципальное автономное общеобразовательное учреждение \"Образовательный центр № 5 г. Челябинска\"","Курчатовский",4,4,0,3,3,0,0,3,1,0,3,6,0,0,0,3,22]
["Шабан","Муниципальное бюджетное общеобразовательное учреждение \"Средняя общеобразовательная школа №32 г. Челябинска\"","Ленинский",4,4,0,0,2,0,1,3,0,1,3,5,1,0,6,0,22]
["Кузовлев","Муниципальное бюджетное общеобразовательное учреждение \"Санаторная школа-интернат для детей, нуждающихся в длительном лечении, №3 г. Челябинска\"","Металлургический",4,4,0,1,4,0,2,0,0,1,3,5,0,0,5,1,22]
["Борисов","Муниципальное автономное общеобразовательное учреждение \"Средняя общеобразовательная школа № 145 г. Челябинска\"","Советский",4,4,0,1,1,0,0,3,1,2,5,4,1,0,3,1,22]
["Захарова","Муниципальное автономное общеобразовательное учреждение \"Средняя общеобразовательная школа № 145 г. Челябинска\"","Советский",4,4,0,3,2,0,0,0,0,2,2,7,0,0,6,0,22]
["Кириченко","Муниципальное бюджетное общеобразовательное учреждение \"Средняя общеобразовательная школа № 105 г. Челябинска имени В.П. Середкина\"","Советский",4,4,1,0,3,0,1,3,0,2,3,6,0,0,3,0,22]
["Алексеева","Муниципальное автономное общеобразовательное учреждение \"Средняя общеобразовательная школа №155 г. Челябинска\"","Тракторозаводский",4,4,1,0,4,0,0,0,0,2,1,6,1,0,5,2,22]
["Муминов","Муниципальное бюджетное общеобразовательное учреждение \"Средняя общеобразовательная школа №107 г. Челябинска\"","Тракторозаводский",4,4,0,0,1,0,3,3,0,2,1,5,0,0,5,2,22]
["Сафарова","Муниципальное автономное общеобразовательное учреждение \"Средняя общеобразовательная школа №153 г. Челябинска\"","Центральный",4,4,0,2,1,0,3,3,3,1,3,4,0,0,1,1,22]
["Бурова","Муниципальное бюджетное общеобразовательное учреждение \"Гимназия №48 им. Н. Островского г. Челябинска\"","Тракторозаводский",4,4,0,0,4,0,3,0,2,1,4,7,0,0,0,1,22]
["Мазур","Муниципальное Бюджетное Общеобразовательное Учреждение \"Средняя Общеобразовательная Школа №129 г. Челябинска\"","Калининский",4,4,0,2,0,0,4,0,0,3,0,7,0,0,4,1,21]
["Пронина","Муниципальное автономное общеобразовательное учреждение \"Средняя общеобразовательная школа №36 г. Челябинска\"","Калининский",4,4,0,0,3,0,1,3,0,1,4,5,0,0,4,0,21]
["Рогачёва","Муниципальное бюджетное общеобразовательное учреждение \"Средняя общеобразовательная школа № 4 г. Челябинска\"","Курчатовский",4,4,0,0,3,0,1,0,0,2,2,6,0,0,4,3,21]
["Антипов","Муниципальное автономное общеобразовательное учреждение \"Лицей №77 г. Челябинска\"","Ленинский",4,4,0,1,3,0,1,0,2,1,0,7,0,0,6,0,21]
["Дронов","Муниципальное автономное общеобразовательное учреждение \"Гимназия №100 г. Челябинска\"","Ленинский",4,4,0,3,3,0,2,3,0,1,0,5,0,0,4,0,21]
["Мурзина","Муниципальное бюджетное общеобразовательное учреждение \"Средняя общеобразовательная школа №51 г. Челябинска\"","Ленинский",4,4,0,1,4,0,0,0,2,2,0,5,1,0,6,0,21]
["Маршева","Муниципальное автономное общеобразовательное учреждение \"Средняя общеобразовательная школа № 94 г. Челябинска\"","Металлургический",4,4,0,3,2,0,0,0,0,1,5,5,0,0,5,0,21]
["Чуковская","Муниципальное бюджетное общеобразовательное учреждение \"Средняя общеобразовательная школа № 105 г. Челябинска имени В.П. Середкина\"","Советский",4,4,1,1,0,0,0,0,2,1,3,6,0,0,5,2,21]
["Овчинников","Муниципальное автономное общеобразовательное учреждение \"Средняя общеобразовательная школа №147 г. Челябинска\"","Центральный",4,4,1,0,3,0,0,3,2,1,0,5,0,0,5,1,21]
["Григорьева","Муниципальное автономное общеобразовательное учреждение \"Средняя общеобразовательная школа №130 г. Челябинска\"","Ленинский",4,4,0,1,3,0,3,0,0,1,0,7,1,0,4,0,20]
["Домнина","Муниципальное автономное общеобразовательное учреждение \"Гимназия №76 г. Челябинска\"","Ленинский",4,4,0,3,2,0,0,3,1,1,0,5,0,0,4,1,20]
["Иванова","Муниципальное бюджетное общеобразовательное учреждение \"Средняя общеобразовательная школа № 55 города Челябинска\"","Ленинский",4,4,0,0,2,0,1,0,2,1,3,5,1,0,5,0,20]
["Павленко","Муниципальное бюджетное общеобразовательное учреждение \"Средняя общеобразовательная школа №51 г. Челябинска\"","Ленинский",4,4,0,0,4,0,0,0,1,3,0,7,1,0,3,1,20]
["Мишагина","Муниципальное автономное общеобразовательное учреждение \"Средняя общеобразовательная школа № 98 г. Челябинска\"","Советский",4,4,0,0,4,0,2,0,0,1,3,5,0,0,5,0,20]
["Максютов","Муниципальное бюджетное общеобразовательное учреждение \"Прогимназия №90 г. Челябинска\"","Центральный",4,4,0,2,0,0,1,0,0,2,0,5,1,0,5,4,20]
["Тельминова","Муниципальное автономное общеобразовательное учреждение \"Средняя общеобразовательная школа № 8 г. Челябинска\"","Центральный",4,4,0,0,2,0,3,0,1,1,2,5,0,0,6,0,20]
["Коршунов","Муниципальное автономное общеобразовательное учреждение \"Средняя общеобразовательная школа №36 г. Челябинска\"","Калининский",4,4,0,0,2,0,0,0,0,2,4,6,1,0,4,0,19]
["Мощенко","Муниципальное автономное общеобразовательное учреждение \"Средняя общеобразовательная школа №36 г. Челябинска\"","Калининский",4,4,0,0,2,0,1,3,0,1,0,5,0,0,4,3,19]
["Непочелович","Муниципальное автономное общеобразовательное учреждение «Образовательный центр «НЬЮТОН» г. Челябинска»","Калининский",4,4,0,0,3,0,0,3,0,0,2,6,1,0,4,0,19]
["Балашов","Муниципальное автономное общеобразовательное учреждение \"Средняя общеобразовательная школа № 41 г. Челябинска\"","Курчатовский",4,4,0,0,4,0,1,0,0,1,4,5,0,0,2,2,19]
["Агафонова","Муниципальное бюджетное общеобразовательное учреждение \"Средняя общеобразовательная школа № 55 города Челябинска\"","Ленинский",4,4,0,1,1,0,1,3,2,1,2,4,0,0,4,0,19]
["Донченко","Муниципальное бюджетное общеобразовательное учреждение \"Санаторная школа-интернат для детей, нуждающихся в длительном лечении, №3 г. Челябинска\"","Металлургический",4,4,0,0,3,0,1,3,1,2,0,4,1,0,4,0,19]
["Клопова","Муниципальное бюджетное общеобразовательное учреждение \"Средняя общеобразовательная школа №107 г. Челябинска\"","Тракторозаводский",4,4,0,3,4,0,0,0,0,1,3,4,1,0,2,1,19]
["Новожилова","Муниципальное бюджетное общеобразовательное учреждение \"Образовательный центр № 3 имени В.К. Белоусова\"","Тракторозаводский",4,4,1,0,2,0,0,0,0,1,3,5,0,0,5,2,19]
["Шумилова","Муниципальное бюджетное общеобразовательное учреждение \"Гимназия №48 им. Н. Островского г. Челябинска\"","Тракторозаводский",4,4,0,1,3,0,2,3,1,0,2,2,0,0,3,2,19]
["Ярушина","Муниципальное автономное общеобразовательное учреждение «Образовательный центр «НЬЮТОН» г. Челябинска»","Калининский",4,4,0,2,3,0,2,0,1,1,3,0,0,0,4,2,18]
["Амаев","Муниципальное бюджетное общеобразовательное учреждение \"Средняя общеобразовательная школа № 45 г. Челябинска\"","Курчатовский",4,4,0,2,2,0,0,3,0,2,0,7,0,0,0,2,18]
["Тугузова","Муниципальное автономное общеобразовательное учреждение \"Академический лицей № 95 г.Челябинска\"","Курчатовский",4,4,1,0,1,0,0,3,1,2,0,4,0,0,5,1,18]
["Ахметшин","Муниципальное бюджетное общеобразовательное учреждение \"Средняя общеобразовательная школа №32 г. Челябинска\"","Ленинский",4,4,0,4,4,0,0,0,1,0,2,6,0,0,1,0,18]
["Фатеева","Муниципальное автономное общеобразовательное учреждение «Средняя общеобразовательная школа № 108 г.Челябинска имени Героя Российской Федерации А.В.Яковлева»","Ленинский",4,4,0,0,4,0,0,0,2,1,1,5,1,0,2,2,18]
["Чараев","Муниципальное бюджетное общеобразовательное учреждение \"Средняя общеобразовательная школа № 68 г. Челябинска\" (филиал 2)","Ленинский",4,4,0,0,3,0,0,0,0,2,0,4,2,0,6,1,18]
["Матвеева","Муниципальное автономное общеобразовательное учреждение \"Средняя общеобразовательная школа № 91 г. Челябинска\"","Металлургический",4,4,0,0,3,0,0,3,0,2,0,5,0,0,5,0,18]
["Антропова","Муниципальное автономное общеобразовательное учреждение \"Средняя общеобразовательная школа № 145 г. Челябинска\"","Советский",4,4,0,1,3,0,0,3,3,1,0,2,1,0,4,0,18]
["Бабихина","Муниципальное автономное общеобразовательное учреждение \"Средняя общеобразовательная школа № 56 г. Челябинска имени Н.В. Ковшовой\"\"","Советский",4,4,0,3,2,0,0,0,1,2,0,6,1,0,3,0,18]
["Гончарова","Муниципальное автономное общеобразовательное учреждение \"Средняя общеобразовательная школа № 145 г. Челябинска\"","Советский",4,4,0,0,3,0,1,0,3,1,0,5,0,0,5,0,18]
["Кутышев","Муниципальное автономное общеобразовательное учреждение \"Средняя общеобразовательная школа № 56 г. Челябинска имени Н.В. Ковшовой\"\"","Советский",4,4,1,0,2,0,1,3,0,0,2,4,1,0,4,0,18]
["Шулепов","Муниципальное автономное общеобразовательное учреждение \"Лицей № 142 г.Челябинска\"","Советский",4,4,0,1,1,0,2,3,0,0,3,5,0,0,3,0,18]
["Перевозникова","Муниципальное Бюджетное Общеобразовательное Учреждение \"Лицей № 120 г. Челябинска\"","Тракторозаводский",4,4,0,1,2,0,0,3,1,0,1,5,0,0,5,0,18]
["Дюрдеева","Муниципальное автономное общеобразовательное учреждение \"Образовательный Центр № 1 \"","Калининский",4,4,0,0,3,0,0,0,0,3,0,4,0,0,4,3,17]
["Пруненко","Муниципальное автономное общеобразовательное учреждение \"Средняя общеобразовательная школа №78 г. Челябинска\"","Калининский",4,4,0,0,1,0,0,3,0,1,0,7,0,0,5,0,17]
["Иванова","Муниципальное бюджетное общеобразовательное учреждение \"Средняя общеобразовательная школа № 45 г. Челябинска\"","Курчатовский",4,4,1,0,1,0,0,3,0,3,0,4,0,0,2,3,17]
["Бабенков","Муниципальное автономное общеобразовательное учреждение \"Средняя общеобразовательная школа № 8 г. Челябинска\"","Центральный",4,4,0,1,0,0,0,3,0,3,0,4,0,0,4,2,17]
["Яшкина","Муниципальное автономное общеобразовательное учреждение \"Средняя общеобразовательная школа №153 г. Челябинска\"","Центральный",4,4,0,1,2,0,2,0,1,0,1,4,0,0,6,0,17]
["Гугучкин","Муниципальное бюджетное общеобразовательное учреждение \"Образовательный центр № 3 имени В.К. Белоусова\"","Тракторозаводский",4,4,1,0,0,0,0,3,0,2,0,6,0,0,5,0,17]
["Кольчиков","Частное общеобразовательное учреждение «Челябинская православная гимназия во имя Святого Праведного Симеона Верхотурского Чудотворца»","Калининский",4,4,0,1,2,0,0,0,1,0,6,0,0,0,3,3,16]
["Прокопова","Муниципальное автономное общеобразовательное учреждение \"Средняя общеобразовательная школа №154 г.Челябинска\"","Калининский",4,4,0,0,0,0,0,0,0,2,4,5,0,0,4,1,16]
["Топорович","Муниципальное автономное общеобразовательное учреждение \"Образовательный Центр № 1 \"","Калининский",4,4,0,0,0,0,1,0,1,0,1,6,0,0,5,2,16]
["Малафеевская","Муниципальное автономное общеобразовательное учреждение \"Гимназия №93 г. Челябинска имени Александра Фомича Гелича\"","Курчатовский",4,4,0,0,3,0,0,3,0,0,3,6,0,0,1,0,{"$f":"SUM(F515:S515)","v":16}]
["Сачкова","Муниципальное бюджетное общеобразовательное учреждение \"Средняя общеобразовательная школа № 55 города Челябинска\"","Ленинский",4,4,0,0,0,0,0,0,1,0,5,6,0,0,4,0,16]
["Рубцов","Муниципальное бюджетное общеобразовательное учреждение \"Прогимназия №90 г. Челябинска\"","Центральный",4,4,0,0,4,0,0,0,1,1,0,3,1,0,4,2,16]
["Кауфман","Муниципальное автономное общеобразовательное учреждение \"Средняя общеобразовательная школа №154 г.Челябинска\"","Калининский",4,4,0,1,0,0,0,3,0,2,0,4,0,0,3,2,15]
["Парфенов","Муниципальное автономное общеобразовательное учреждение «Образовательный центр «НЬЮТОН» г. Челябинска»","Калининский",4,4,0,0,1,0,0,3,0,2,2,7,0,0,0,0,15]
["Чернышев","Муниципальное бюджетное общеобразовательное учреждение \"Средняя общеобразовательная школа №151 г. Челябинска\"","Калининский",4,4,0,1,3,0,4,0,0,0,0,0,0,0,5,2,15]
["Шардина","Муниципальное автономное общеобразовательное учреждение \"Средняя общеобразовательная школа №154 г.Челябинска\"","Калининский",4,4,0,0,0,0,0,0,1,1,3,5,0,0,5,0,15]
["Юнина","Муниципальное автономное общеобразовательное учреждение \"Гимназия №100 г. Челябинска\"","Ленинский",4,4,0,0,0,0,0,3,1,1,0,5,0,0,3,2,15]
["Косарева","Муниципальное автономное общеобразовательное учреждение \"Гимназия №100 г. Челябинска\"","Ленинский",4,4,0,0,4,0,0,3,0,1,0,5,0,0,0,1,14]
["Юмагужин","Муниципальное бюджетное общеобразовательное учреждение \"Средняя общеобразовательная школа №32 г. Челябинска\"","Ленинский",4,4,0,0,2,0,1,0,1,1,0,5,0,0,4,0,14]
["Князев","Муниципальное бюджетное общеобразовательное учреждение \"Санаторная школа-интернат для детей, нуждающихся в длительном лечении, №3 г. Челябинска\"","Металлургический",4,4,0,0,1,0,0,0,0,1,3,4,1,0,3,1,14]
["Железнякова","Муниципальное автономное общеобразовательное учреждение \"Средняя общеобразовательная школа №154 г.Челябинска\"","Калининский",4,4,0,0,1,0,1,3,1,0,0,5,1,0,1,0,13]
["Кульпина","Муниципальное автономное общеобразовательное учреждение «Образовательный центр «НЬЮТОН» г. Челябинска»","Калининский",4,4,0,0,0,0,3,0,0,0,0,5,1,0,3,1,13]
["Пономарёв","Муниципальное бюджетное общеобразовательное учреждение \"Санаторная школа-интернат для детей, нуждающихся в длительном лечении, №3 г. Челябинска\"","Металлургический",4,4,0,0,4,0,0,0,0,1,3,4,0,0,0,1,13]
["Власов","Муниципальное автономное общеобразовательное учреждение \"Средняя общеобразовательная школа №154 г.Челябинска\"","Калининский",4,4,0,1,0,0,0,0,0,0,3,5,0,0,3,0,12]
["Ческидова","Муниципальное бюджетное общеобразовательное учреждение \"Средняя общеобразовательная школа № 4 г. Челябинска\"","Курчатовский",4,4,0,1,3,0,0,3,0,0,0,0,1,0,3,1,12]
["Пузан","Муниципальное бюджетное общеобразовательное учреждение \"Средняя общеобразовательная школа № 55 города Челябинска\"","Ленинский",4,4,0,0,2,0,0,0,0,1,0,6,0,0,3,0,12]
["Алексеева","Муниципальное автономное общеобразовательное учреждение \"Средняя общеобразовательная школа № 56 г. Челябинска имени Н.В. Ковшовой\"\"","Советский",4,4,0,1,1,0,0,0,0,2,0,5,1,0,2,0,12]
["Бунин","Муниципальное бюджетное общеобразовательное учреждение \"Средняя общеобразовательная школа №107 г. Челябинска\"","Тракторозаводский",4,4,0,0,1,0,0,2,0,1,3,4,0,0,0,1,12]
["Самцов","Муниципальное бюджетное общеобразовательное учреждение \"Средняя общеобразовательная школа №32 г. Челябинска\"","Ленинский",4,4,0,0,0,0,0,3,0,0,0,6,0,0,2,0,11]
["Шевяков","Муниципальное автономное общеобразовательное учреждение \"Средняя общеобразовательная школа №36 г. Челябинска\"","Калининский",4,4,0,0,1,0,0,3,0,0,0,0,0,0,4,0,8]
["Яппаров","Муниципальное бюджетное общеобразовательное учреждение \"Средняя общеобразовательная школа № 55 города Челябинска\"","Ленинский",4,4,0,0,1,0,0,0,0,1,3,0,0,0,2,0,7]
["Успенский","частное общеобразовательное учреждение \"РЖД лицей № 4\"","Ленинский",1,4,0,1,0,0,0,0,1,1,2,0,0,0,1,0,6]
["Рахимов","Муниципальное автономное общеобразовательное учреждение \"Средняя общеобразовательная школа № 145 г. Челябинска\"","Советский",4,4,0,0,0,0,0,0,0,1,3,0,0,0,1,0,5]
["Путинцева","Муниципальное автономное общеобразовательное учреждение \"Средняя общеобразовательная школа № 145 г. Челябинска\"","Советский",4,4,0,0,0,0,0,0,0,0,0,0,1,0,0,0,1]